{"text_format":"1","workbook":"xlsx","n_sheets":3,"sheets":["Formular","Daten","Tabelle1"],"not_rendered":{"charts":0,"images":3,"macros":1,"external_links":0,"defined_names":7,"comments":1,"pivot_tables":1},"unopened":[],"bounds":{"document_bytes":16777216,"sheet_cells":100000,"rows_first":2000,"rows_last":500,"rows_between":2000,"halvings":0,"cell_chars":16384,"cell_head_chars":4096},"cells_cut":0,"cells_raw":0,"read":"whole","date_system":"1900"}

{"sheet":"Formular","index":0,"n_rows":100,"n_cols":17,"rows_kept":100,"cut":false,"hidden":false,"merged":[[97,0,97,1],[97,2,97,7],[97,12,97,13],[98,0,98,1],[98,2,98,7],[98,12,98,13],[99,0,99,1],[99,2,99,7],[99,12,99,13],[97,8,97,10],[98,8,98,10],[99,8,99,10],[94,0,94,1],[94,2,94,7],[94,12,94,13],[95,0,95,1],[95,2,95,7],[95,12,95,13],[96,0,96,1],[96,2,96,7],[96,12,96,13],[94,8,94,10],[95,8,95,10],[96,8,96,10],[91,0,91,1],[91,2,91,7],[91,12,91,13],[92,0,92,1],[92,2,92,7],[92,12,92,13],[93,0,93,1],[93,2,93,7],[93,12,93,13],[91,8,91,10],[92,8,92,10],[93,8,93,10],[88,0,88,1],[88,2,88,7],[88,12,88,13],[89,0,89,1],[89,2,89,7],[89,12,89,13],[90,0,90,1],[90,2,90,7],[90,12,90,13],[88,8,88,10],[89,8,89,10],[90,8,90,10],[85,0,85,1],[85,2,85,7],[85,12,85,13],[86,0,86,1],[86,2,86,7],[86,12,86,13],[87,0,87,1],[87,2,87,7],[87,12,87,13],[85,8,85,10],[86,8,86,10],[87,8,87,10],[82,0,82,1],[82,2,82,7],[82,12,82,13],[83,0,83,1],[83,2,83,7],[83,12,83,13],[84,0,84,1],[84,2,84,7],[84,12,84,13],[82,8,82,10],[83,8,83,10],[84,8,84,10],[79,0,79,1],[79,2,79,7],[79,12,79,13],[80,0,80,1],[80,2,80,7],[80,12,80,13],[81,0,81,1],[81,2,81,7],[81,12,81,13],[79,8,79,10],[80,8,80,10],[81,8,81,10],[76,0,76,1],[76,2,76,7],[76,12,76,13],[77,0,77,1],[77,2,77,7],[77,12,77,13],[78,0,78,1],[78,2,78,7],[78,12,78,13],[76,8,76,10],[77,8,77,10],[78,8,78,10],[73,0,73,1],[73,2,73,7],[73,12,73,13],[74,0,74,1],[74,2,74,7],[74,12,74,13],[75,0,75,1],[75,2,75,7],[75,12,75,13],[73,8,73,10],[74,8,74,10],[75,8,75,10],[70,0,70,1],[70,2,70,7],[70,12,70,13],[71,0,71,1],[71,2,71,7],[71,12,71,13],[72,0,72,1],[72,2,72,7],[72,12,72,13],[70,8,70,10],[71,8,71,10],[72,8,72,10],[67,0,67,1],[67,2,67,7],[67,12,67,13],[68,0,68,1],[68,2,68,7],[68,12,68,13],[69,0,69,1],[69,2,69,7],[69,12,69,13],[67,8,67,10],[68,8,68,10],[69,8,69,10],[64,0,64,1],[64,2,64,7],[64,12,64,13],[65,0,65,1],[65,2,65,7],[65,12,65,13],[66,0,66,1],[66,2,66,7],[66,12,66,13],[64,8,64,10],[65,8,65,10],[66,8,66,10],[61,0,61,1],[61,2,61,7],[61,12,61,13],[62,0,62,1],[62,2,62,7],[62,12,62,13],[63,0,63,1],[63,2,63,7],[63,12,63,13],[61,8,61,10],[62,8,62,10],[63,8,63,10],[58,0,58,1],[58,2,58,7],[58,12,58,13],[59,0,59,1],[59,2,59,7],[59,12,59,13],[60,0,60,1],[60,2,60,7],[60,12,60,13],[58,8,58,10],[59,8,59,10],[60,8,60,10],[55,0,55,1],[55,2,55,7],[55,12,55,13],[56,0,56,1],[56,2,56,7],[56,12,56,13],[57,0,57,1],[57,2,57,7],[57,12,57,13],[55,8,55,10],[56,8,56,10],[57,8,57,10],[52,0,52,1],[52,2,52,7],[52,12,52,13],[53,0,53,1],[53,2,53,7],[53,12,53,13],[54,0,54,1],[54,2,54,7],[54,12,54,13],[52,8,52,10],[53,8,53,10],[54,8,54,10],[49,0,49,1],[49,2,49,7],[49,12,49,13],[50,0,50,1],[50,2,50,7],[50,12,50,13],[51,0,51,1],[51,2,51,7],[51,12,51,13],[46,0,46,1],[47,0,47,1],[48,0,48,1],[46,2,46,7],[46,12,46,13],[47,2,47,7],[47,12,47,13],[48,2,48,7],[48,12,48,13],[0,0,0,14],[10,13,10,14],[2,0,2,1],[2,2,2,6],[3,2,3,6],[4,2,4,6],[6,5,6,9],[6,0,6,4],[7,0,7,4],[7,5,7,9],[8,5,8,8],[10,7,10,8],[21,12,21,13],[22,0,22,1],[22,2,22,7],[22,12,22,13],[21,0,21,1],[21,2,21,7],[15,3,15,8],[17,9,17,14],[17,4,17,7],[22,8,22,10],[21,8,21,10],[25,0,25,1],[25,2,25,7],[25,12,25,13],[26,0,26,1],[26,2,26,7],[26,12,26,13],[23,0,23,1],[23,2,23,7],[23,12,23,13],[24,0,24,1],[24,2,24,7],[24,12,24,13],[23,8,23,10],[24,8,24,10],[25,8,25,10],[26,8,26,10],[29,0,29,1],[29,2,29,7],[29,12,29,13],[30,0,30,1],[30,2,30,7],[30,12,30,13],[27,0,27,1],[27,2,27,7],[27,12,27,13],[28,0,28,1],[28,2,28,7],[28,12,28,13],[27,8,27,10],[28,8,28,10],[29,8,29,10],[30,8,30,10],[33,0,33,1],[33,2,33,7],[33,12,33,13],[34,0,34,1],[34,2,34,7],[34,12,34,13],[31,0,31,1],[31,2,31,7],[31,12,31,13],[32,0,32,1],[32,2,32,7],[32,12,32,13],[31,8,31,10],[32,8,32,10],[33,8,33,10],[34,8,34,10],[35,0,35,1],[35,2,35,7],[35,12,35,13],[36,0,36,1],[36,2,36,7],[36,12,36,13],[35,8,35,10],[36,8,36,10],[37,8,37,10],[40,2,40,7],[40,12,40,13],[39,8,39,10],[40,8,40,10],[41,8,41,10],[42,8,42,10],[37,0,37,1],[37,2,37,7],[37,12,37,13],[38,0,38,1],[38,2,38,7],[38,12,38,13],[38,8,38,10],[45,0,45,1],[45,2,45,7],[45,12,45,13],[2,10,2,14],[3,10,3,14],[4,10,4,14],[15,11,15,14],[15,9,15,10],[43,0,43,1],[43,2,43,7],[43,12,43,13],[44,0,44,1],[44,2,44,7],[44,12,44,13],[41,0,41,1],[41,2,41,7],[41,12,41,13],[42,0,42,1],[42,2,42,7],[42,12,42,13],[39,0,39,1],[39,2,39,7],[39,12,39,13],[40,0,40,1],[43,8,43,10],[44,8,44,10],[45,8,45,10],[46,8,46,10],[47,8,47,10],[48,8,48,10],[49,8,49,10],[50,8,50,10],[51,8,51,10]]}
["Hessischer Kegler- u. Bowling-Verband e.V.  Sektion Bowling",null,null,null,null,null,null,null,null,null,null,null,null,null,null,null,"Die gelben Felder sind auszufüllen"]
["Meldebogen HM 2015 - 2016",null,null,null,null,null,null,null,"Seniorinnen, Senioren und Versehrte Einzel 1"]
["Leitung:",null,{"$f":"VLOOKUP(I2,event,2,FALSE)","v":"Siedentopf Peter"},null,null,null,null,null,null,"Tel",{"$f":"VLOOKUP(I2,event,5,FALSE)","v":"06173 5718"}]
[null,null,{"$f":"VLOOKUP(I2,event,3,FALSE)","v":"61476 Kronberg"},null,null,null,null,null,null,"Fax",{"$f":"VLOOKUP(I2,event,6,FALSE)","v":"06173 5718"}]
[null,null,{"$f":"VLOOKUP(I2,event,4,FALSE)","v":"Talweg 1"},null,null,null,null,null,null,"E-Mail",{"$f":"VLOOKUP(I2,event,7,FALSE)","v":"siedentopfgp@freenet.de"}]
["Startzeiten:"]
[{"$f":"VLOOKUP(I2,event,10,FALSE)","v":"Rebstock"},null,null,null,null,{"$f":"VLOOKUP(I2,event,12,FALSE)","v":"2016-01-23"},null,null,null,null,{"$f":"IF(ISERROR(VLOOKUP(I2,event,14,FALSE)),\"\",VLOOKUP(I2,event,14,FALSE))","v":"09:00:00"},{"$f":"IF(ISERROR(VLOOKUP(I2,event,15,FALSE)),\"\",VLOOKUP(I2,event,15,FALSE))","v":"12:40:00"},{"$f":"IF(ISERROR(VLOOKUP(I2,event,16,FALSE)),\"\",VLOOKUP(I2,event,16,FALSE))","v":"16:20:00"},{"$f":"IF(ISERROR(VLOOKUP(I2,event,17,FALSE)),\"\",VLOOKUP(I2,event,17,FALSE))","v":"*"},{"$f":"IF(ISERROR(VLOOKUP(I2,event,18,FALSE)),\"\",VLOOKUP(I2,event,18,FALSE))","v":" "}]
[{"$f":"VLOOKUP(I2,event,11,FALSE)","v":"Eschersheim"},null,null,null,null,{"$f":"VLOOKUP(I2,event,13,FALSE)","v":"2016-01-24"},null,null,null,null,{"$f":"IF(ISERROR(VLOOKUP(I2,event,19,FALSE)),\"\",VLOOKUP(I2,event,19,FALSE))","v":"00:00:00"},{"$f":"IF(ISERROR(VLOOKUP(I2,event,20,FALSE)),\"\",VLOOKUP(I2,event,20,FALSE))","v":"00:00:00"},{"$f":"IF(ISERROR(VLOOKUP(I2,event,21,FALSE)),\"\",VLOOKUP(I2,event,21,FALSE))","v":"00:00:00"},{"$f":"IF(ISERROR(VLOOKUP(I2,event,22,FALSE)),\"\",VLOOKUP(I2,event,22,FALSE))","v":"00:00:00"},{"$f":"IF(ISERROR(VLOOKUP(I2,event,23,FALSE)),\"\",VLOOKUP(I2,event,23,FALSE))","v":"00:00:00"}]
["Meldeschluss:",null,null,null,null,{"$f":"VLOOKUP(I2,event,8,FALSE)","v":"2016-01-17"}]
["(bitte den vollständig ausgefüllten Meldebogen an die Leitung senden - Adresse obenstehend)"]
["Wir melden",null,null,null,null,"Starts á ",null,{"$f":"VLOOKUP(I2,event,9,FALSE)","v":18},null,null,"Gesamtbetrag von ",null,null,{"$f":"H11*D11","v":0}]
[]
["Bitte den Gesamtbetrag auf ",null,null,null,null,{"$f":"VLOOKUP(I2,event,26,FALSE)","v":"HKBV e.V. - Sektion Bowling   Sparkasse Dieburg"},null,null,null,null,null,null,null,"überweisen"]
["und Kopie Überweisungsbeleg",null,null,null,null,"IBAN: ",null,{"$f":"VLOOKUP(I2,event,24,FALSE)","v":"DE 28 5085 2651 0136 0071 84"}]
["beilegen.",null,null,null,null,"BIC:    ",null,{"$f":"VLOOKUP(I2,event,25,FALSE)","v":"HELADEF1DIE"}]
["Verein / Club:",null,null,"KBV Kelsterbach",null,null,null,null,null,"Gemeldet von"]
[]
["Kontktdaten:",null,null,"Tel.:",null,null,null,null,"Email:"]
[]
[null,null,null,null,null,null,null,null,null,null,"wenn Startzeit beliebig dann * eingeben"]
[]
["EDV-Nr.",null,"Name",null,null,null,null,null,"Vorname",null,null,"RL","Altersgruppe",null,"gewünschte \nStartzeit"]
[null,null,{"$f":"IF(ISERROR(VLOOKUP(A23,club,3,FALSE)),\"\",VLOOKUP(A23,club,3,FALSE))","v":""},null,null,null,null,null,{"$f":"IF(ISERROR(VLOOKUP(A23,club,4,FALSE)),\"\",VLOOKUP(A23,club,4,FALSE))","v":""},null,null,null,{"$f":"IF(ISERROR(VLOOKUP(A23,club,5,FALSE)),\"\",VLOOKUP(A23,club,5,FALSE))","v":""}]
[null,null,"",null,null,null,null,null,{"$f":"IF(ISERROR(VLOOKUP(A24,club,4,FALSE)),\"\",VLOOKUP(A24,club,4,FALSE))","v":""},null,null,null,""]
[null,null,"",null,null,null,null,null,"",null,null,null,""]
[null,null,"",null,null,null,null,null,"",null,null,null,""]
[null,null,"",null,null,null,null,null,"",null,null,null,""]
[null,null,"",null,null,null,null,null,"",null,null,null,""]
[null,null,"",null,null,null,null,null,"",null,null,null,""]
[null,null,"",null,null,null,null,null,"",null,null,null,""]
[null,null,"",null,null,null,null,null,"",null,null,null,""]
[null,null,"",null,null,null,null,null,"",null,null,null,""]
[null,null,"",null,null,null,null,null,"",null,null,null,""]
[null,null,"",null,null,null,null,null,"",null,null,null,""]
[null,null,"",null,null,null,null,null,"",null,null,null,""]
[null,null,"",null,null,null,null,null,"",null,null,null,""]
[null,null,"",null,null,null,null,null,"",null,null,null,""]
[null,null,"",null,null,null,null,null,"",null,null,null,""]
[null,null,"",null,null,null,null,null,"",null,null,null,""]
[null,null,"",null,null,null,null,null,"",null,null,null,""]
[null,null,"",null,null,null,null,null,"",null,null,null,""]
[null,null,"",null,null,null,null,null,"",null,null,null,""]
[null,null,"",null,null,null,null,null,"",null,null,null,""]
[null,null,"",null,null,null,null,null,"",null,null,null,""]
[null,null,"",null,null,null,null,null,"",null,null,null,""]
[null,null,"",null,null,null,null,null,"",null,null,null,""]
[null,null,"",null,null,null,null,null,"",null,null,null,""]
[null,null,"",null,null,null,null,null,"",null,null,null,""]
[null,null,"",null,null,null,null,null,"",null,null,null,""]
[null,null,"",null,null,null,null,null,"",null,null,null,""]
[null,null,"",null,null,null,null,null,"",null,null,null,""]
[null,null,"",null,null,null,null,null,"",null,null,null,""]
[null,null,"",null,null,null,null,null,"",null,null,null,""]
[null,null,"",null,null,null,null,null,"",null,null,null,""]
[null,null,{"$f":"IF(ISERROR(VLOOKUP(A55,club,3,FALSE)),\"\",VLOOKUP(A55,club,3,FALSE))","v":""},null,null,null,null,null,{"$f":"IF(ISERROR(VLOOKUP(A55,club,4,FALSE)),\"\",VLOOKUP(A55,club,4,FALSE))","v":""},null,null,null,{"$f":"IF(ISERROR(VLOOKUP(A55,club,5,FALSE)),\"\",VLOOKUP(A55,club,5,FALSE))","v":""}]
[null,null,"",null,null,null,null,null,"",null,null,null,""]
[null,null,"",null,null,null,null,null,"",null,null,null,""]
[null,null,"",null,null,null,null,null,"",null,null,null,""]
[null,null,"",null,null,null,null,null,"",null,null,null,""]
[null,null,"",null,null,null,null,null,"",null,null,null,""]
[null,null,"",null,null,null,null,null,"",null,null,null,""]
[null,null,"",null,null,null,null,null,"",null,null,null,""]
[null,null,"",null,null,null,null,null,"",null,null,null,""]
[null,null,"",null,null,null,null,null,"",null,null,null,""]
[null,null,"",null,null,null,null,null,"",null,null,null,""]
[null,null,"",null,null,null,null,null,"",null,null,null,""]
[null,null,"",null,null,null,null,null,"",null,null,null,""]
[null,null,"",null,null,null,null,null,"",null,null,null,""]
[null,null,"",null,null,null,null,null,"",null,null,null,""]
[null,null,"",null,null,null,null,null,"",null,null,null,""]
[null,null,"",null,null,null,null,null,"",null,null,null,""]
[null,null,"",null,null,null,null,null,"",null,null,null,""]
[null,null,"",null,null,null,null,null,"",null,null,null,""]
[null,null,"",null,null,null,null,null,"",null,null,null,""]
[null,null,"",null,null,null,null,null,"",null,null,null,""]
[null,null,"",null,null,null,null,null,"",null,null,null,""]
[null,null,"",null,null,null,null,null,"",null,null,null,""]
[null,null,"",null,null,null,null,null,"",null,null,null,""]
[null,null,"",null,null,null,null,null,"",null,null,null,""]
[null,null,"",null,null,null,null,null,"",null,null,null,""]
[null,null,"",null,null,null,null,null,"",null,null,null,""]
[null,null,"",null,null,null,null,null,"",null,null,null,""]
[null,null,"",null,null,null,null,null,"",null,null,null,""]
[null,null,"",null,null,null,null,null,"",null,null,null,""]
[null,null,"",null,null,null,null,null,"",null,null,null,""]
[null,null,"",null,null,null,null,null,"",null,null,null,""]
[null,null,{"$f":"IF(ISERROR(VLOOKUP(A87,club,3,FALSE)),\"\",VLOOKUP(A87,club,3,FALSE))","v":""},null,null,null,null,null,{"$f":"IF(ISERROR(VLOOKUP(A87,club,4,FALSE)),\"\",VLOOKUP(A87,club,4,FALSE))","v":""},null,null,null,{"$f":"IF(ISERROR(VLOOKUP(A87,club,5,FALSE)),\"\",VLOOKUP(A87,club,5,FALSE))","v":""}]
[null,null,"",null,null,null,null,null,"",null,null,null,""]
[null,null,"",null,null,null,null,null,"",null,null,null,""]
[null,null,"",null,null,null,null,null,"",null,null,null,""]
[null,null,"",null,null,null,null,null,"",null,null,null,""]
[null,null,"",null,null,null,null,null,"",null,null,null,""]
[null,null,"",null,null,null,null,null,"",null,null,null,""]
[null,null,"",null,null,null,null,null,"",null,null,null,""]
[null,null,"",null,null,null,null,null,"",null,null,null,""]
[null,null,"",null,null,null,null,null,"",null,null,null,""]
[null,null,"",null,null,null,null,null,"",null,null,null,""]
[null,null,"",null,null,null,null,null,"",null,null,null,""]
[null,null,"",null,null,null,null,null,"",null,null,null,""]
[null,null,{"$f":"IF(ISERROR(VLOOKUP(A100,club,3,FALSE)),\"\",VLOOKUP(A100,club,3,FALSE))","v":""},null,null,null,null,null,"",null,null,null,{"$f":"IF(ISERROR(VLOOKUP(A100,club,6,FALSE)),\"\",VLOOKUP(A100,club,6,FALSE))","v":""}]

{"sheet":"Daten","index":1,"n_rows":99,"n_cols":26,"rows_kept":99,"cut":false,"hidden":true,"merged":[]}
[null,null,null,null,null,null,null,null,null,null,null,null,null,"Startzeiten Vorlauf",null,null,null,null,"Startzeiten ab 2 Runde"]
["Event","Leitung","ort","Strasse","Tel","Fax","E-Mail","meldschluß","startgebühr","spielort1","spielort2","Von","Bis","start1","start2","start3","start4","start5","start6","start7","start8","start9",null,"Iban","Bic","Bank"]
["Trio Damen und Herren 3","Edgar Müller","63457 Hanau","Wolfstr. 10 ","01708013807",null,"eddy.mueller@t-online.de",{"$f":"M3-14","v":"2015-11-01"},54,"Mühlheim","Wetzlar","2015-11-14","2015-11-15","09:00:00","12:30:00","16:00:00","*","*",1,1.0416666666666701,1.0833333333333299,1.125,1.1666666666666701,"DE 28 5085 2651 0136 0071 84","HELADEF1DIE","HKBV e.V. - Sektion Bowling   Sparkasse Dieburg"]
["Damen und Herren Doppel 2","Edgar Müller","63457 Hanau","Wolfstr. 10 ","01708013807",null,"eddy.mueller@t-online.de",{"$f":"M4-14","v":"2015-12-27"},36,"Eschersheim","Rebstock","2016-01-09","2016-01-10","09:00:00","12:40:00","16:20:00","*","*",null,null,null,null,null,"DE 28 5085 2651 0136 0071 84","HELADEF1DIE","HKBV e.V. - Sektion Bowling   Sparkasse Dieburg"]
["Seniorinnen, Senioren und Versehrte Einzel 1","Siedentopf Peter","61476 Kronberg","Talweg 1","06173 5718","06173 5718","siedentopfgp@freenet.de",{"$f":"M5-7","v":"2016-01-17"},18,"Rebstock","Eschersheim","2016-01-23","2016-01-24","09:00:00","12:40:00","16:20:00","*"," ",null,null,null,null,null,"DE 28 5085 2651 0136 0071 84","HELADEF1DIE","HKBV e.V. - Sektion Bowling   Sparkasse Dieburg"]
["Jugend Einzel 1","Gabriele Brandes","60599 Frankfurt","Völklinger Weg 23","0162/9640749",null,"gabibrandes@gmx.de","2016-01-31",20,"Eschersheim",null,"2016-02-14","2016-02-14","11:00:00",null,"*","*","*",null,null,null,null,null,"DE 28 5085 2651 0136 0071 84","HELADEF1DIE","HKBV e.V. - Sektion Bowling   Sparkasse Dieburg"]
["Junioren Einzel 1","Edgar Müller","63457 Hanau","Wolfstr. 10 ","01708013807",null,"eddy.mueller@t-online.de","2016-01-31",18,"Eschersheim",null,"2016-02-14","2016-02-14","10:00:00",null,"*","*","*",null,null,null,null,null,"DE 28 5085 2651 0136 0071 84","HELADEF1DIE","HKBV e.V. - Sektion Bowling   Sparkasse Dieburg"]
["Seniorinnen, Senioren Trio 3","Siedentopf Peter","61476 Kronberg","Talweg 1","06173 5718","06173 5718","siedentopfgp@freenet.de",{"$f":"M8-7","v":"2016-02-28"},54,"Rebstock","Eschersheim","2016-03-05","2016-03-06","09:30:00","14:15:00","*","*","*","09:30:00","14:15:00",null,null,null,"DE 28 5085 2651 0136 0071 84","HELADEF1DIE","HKBV e.V. - Sektion Bowling   Sparkasse Dieburg"]
["Mixed Doppel 2","Edgar Müller","63457 Hanau","Wolfstr. 10 ","01708013807",null,"eddy.mueller@t-online.de","2016-03-06",36,"Eschersheim","Langen","2016-03-19","2016-03-20","09:00:00","12:40:00","16:20:00","*","*",null,null,null,null,null,"DE 28 5085 2651 0136 0071 84","HELADEF1DIE","HKBV e.V. - Sektion Bowling   Sparkasse Dieburg"]
["Einzel Damen und Herren 1","Edgar Müller","63457 Hanau","Wolfstr. 10 ","01708013807",null,"eddy.mueller@t-online.de","2016-03-27",18,"Wiesbaden","Mühlheim","2016-04-09","2016-04-10","09:00:00","12:45:00","16:25:00","*","*",null,null,null,null,null,"DE 28 5085 2651 0136 0071 84","HELADEF1DIE","HKBV e.V. - Sektion Bowling   Sparkasse Dieburg"]
["Ranglistenturnier 1","Tom Pfaff","60599 Frankfurt","Schweinfurter Weg 74","0179 - 4529279",null,"ranglistenturnier@web.de",{"$f":"L11-7","v":"2015-10-24"},35,"Rebstock","Rebstock","2015-10-31","2015-11-01","09:00:00","12:45:00","16:25:00","*","*","09:00:00",null,null,null,null,null,null,"Bezahlung vor Ort"]
[]
[]
[]
[]
[null,null,null,null,null,null,null,null," "]
[]
[]
["Club"]
["AAN Schwanheim"]
["ABV Frankfurt"]
["BC 2000 Aschaffenburg",null,{"$f":"IF(ISERROR(VLOOKUP(A22,club,3,FALSE)),\"\",VLOOKUP(A22,club,3,FALSE))","v":""},null,null,null,null,null,{"$f":"IF(ISERROR(VLOOKUP(A22,club,4,FALSE)),\"\",VLOOKUP(A22,club,4,FALSE))","v":""}]
["BC 2005 Frankfurt",null,"",null,null,null,null,null,"",null,null,null,{"$f":"IF(ISERROR(VLOOKUP(A23,club,5,FALSE)),\"\",VLOOKUP(A23,club,5,FALSE))","v":""}]
["BC 67 Hanau",null,"",null,null,null,null,null,"",null,null,null,""]
["BC 75 Fortuna",null,"",null,null,null,null,null,"",null,null,null,""]
["BC 83 Kelsterbach",null,"",null,null,null,null,null,"",null,null,null,""]
["BC 89 Olympia Rüsselsheim",null,"",null,null,null,null,null,"",null,null,null,""]
["BC Bad Hersfeld",null,"",null,null,null,null,null,"",null,null,null,""]
["BC Blau-Gelb Frankfurt",null,"",null,null,null,null,null,"",null,null,null,""]
["BC Darmstadt",null,"",null,null,null,null,null,"",null,null,null,""]
["BC Devils",null,"",null,null,null,null,null,"",null,null,null,""]
["BC Eberstadt",null,"",null,null,null,null,null,"",null,null,null,""]
["BC Fusion Langen e.V.",null,"",null,null,null,null,null,"",null,null,null,""]
["BC Gießen",null,"",null,null,null,null,null,"",null,null,null,""]
["BC Höchst",null,"",null,null,null,null,null,"",null,null,null,""]
["BC Kellerstrikers",null,"",null,null,null,null,null,"",null,null,null,""]
["BC Langen 83",null,"",null,null,null,null,null,"",null,null,null,""]
["BC Mühlheim",null,"",null,null,null,null,null,"",null,null,null,""]
["BC Nidda Ffm",null,"",null,null,null,null,null,"",null,null,null,""]
["BC Nord West Ffm",null,"",null,null,null,null,null,"",null,null,null,""]
["BC Power Girls",null,"",null,null,null,null,null,"",null,null,null,""]
["BC Rebstock Ffm",null,"",null,null,null,null,null,"",null,null,null,""]
["BC Wiesbaden",null,"",null,null,null,null,null,"",null,null,null,""]
["Bowlingsportclub Bensheim 08 e.V",null,"",null,null,null,null,null,"",null,null,null,""]
["BSV Dieburg",null,"",null,null,null,null,null,"",null,null,null,""]
["BSV Oberrad",null,"",null,null,null,null,null,"",null,null,null,""]
["BV 1987 Frankfurt",null,"",null,null,null,null,null,"",null,null,null,""]
["BV 77 Frankfurt",null,"",null,null,null,null,null,"",null,null,null,""]
["BV Delphi Frankfurt",null,"",null,null,null,null,null,"",null,null,null,""]
["BV Frankfurt Süd",null,"",null,null,null,null,null,"",null,null,null,""]
["BV Oranje Frankfurt",null,"",null,null,null,null,null,"",null,null,null,""]
["BV Römer Frankfurt",null,"",null,null,null,null,null,"",null,null,null,""]
["BV Taifun Fulda",null,"",null,null,null,null,null,"",null,null,null,""]
["BW Bornheim",null,{"$f":"IF(ISERROR(VLOOKUP(A54,club,3,FALSE)),\"\",VLOOKUP(A54,club,3,FALSE))","v":""},null,null,null,null,null,{"$f":"IF(ISERROR(VLOOKUP(A54,club,4,FALSE)),\"\",VLOOKUP(A54,club,4,FALSE))","v":""},null,null,null,""]
["City Bowler Kassel",null,"",null,null,null,null,null,"",null,null,null,{"$f":"IF(ISERROR(VLOOKUP(A55,club,5,FALSE)),\"\",VLOOKUP(A55,club,5,FALSE))","v":""}]
["Citystrikers",null,"",null,null,null,null,null,"",null,null,null,""]
["Condor Steinheim",null,"",null,null,null,null,null,"",null,null,null,""]
["Cosmos Wiesbaden",null,"",null,null,null,null,null,"",null,null,null,""]
["Finale Kassel",null,"",null,null,null,null,null,"",null,null,null,""]
["FSV Frankfurt",null,"",null,null,null,null,null,"",null,null,null,""]
["FTG-BC Frankfurt",null,"",null,null,null,null,null,"",null,null,null,""]
["I-Bahn SC 34 Ffm",null,"",null,null,null,null,null,"",null,null,null,""]
["Jugend Bowling Club Hanau",null,"",null,null,null,null,null,"",null,null,null,""]
["KBC Kelsterbach",null,"",null,null,null,null,null,"",null,null,null,""]
["Mainhattan Bowlers Frankfurt",null,"",null,null,null,null,null,"",null,null,null,""]
["Phönix Frankfurt",null,"",null,null,null,null,null,"",null,null,null,""]
["SBV",null,"",null,null,null,null,null,"",null,null,null,""]
["SW Friedberg",null,"",null,null,null,null,null,"",null,null,null,""]
["TSV 1860 Hanau",null,"",null,null,null,null,null,"",null,null,null,""]
[null,null,"",null,null,null,null,null,"",null,null,null,""]
[null,null,"",null,null,null,null,null,"",null,null,null,""]
[null,null,"",null,null,null,null,null,"",null,null,null,""]
[null,null,"",null,null,null,null,null,"",null,null,null,""]
[null,null,"",null,null,null,null,null,"",null,null,null,""]
[null,null,"",null,null,null,null,null,"",null,null,null,""]
[null,null,"",null,null,null,null,null,"",null,null,null,""]
[null,null,"",null,null,null,null,null,"",null,null,null,""]
[null,null,"",null,null,null,null,null,"",null,null,null,""]
[null,null,"",null,null,null,null,null,"",null,null,null,""]
[null,null,"",null,null,null,null,null,"",null,null,null,""]
[null,null,"",null,null,null,null,null,"",null,null,null,""]
[null,null,"",null,null,null,null,null,"",null,null,null,""]
[null,null,"",null,null,null,null,null,"",null,null,null,""]
[null,null,"",null,null,null,null,null,"",null,null,null,""]
[null,null,"",null,null,null,null,null,"",null,null,null,""]
[null,null,{"$f":"IF(ISERROR(VLOOKUP(A86,club,3,FALSE)),\"\",VLOOKUP(A86,club,3,FALSE))","v":""},null,null,null,null,null,{"$f":"IF(ISERROR(VLOOKUP(A86,club,4,FALSE)),\"\",VLOOKUP(A86,club,4,FALSE))","v":""},null,null,null,""]
[null,null,"",null,null,null,null,null,"",null,null,null,{"$f":"IF(ISERROR(VLOOKUP(A87,club,5,FALSE)),\"\",VLOOKUP(A87,club,5,FALSE))","v":""}]
[null,null,"",null,null,null,null,null,"",null,null,null,""]
[null,null,"",null,null,null,null,null,"",null,null,null,""]
[null,null,"",null,null,null,null,null,"",null,null,null,""]
[null,null,"",null,null,null,null,null,"",null,null,null,""]
[null,null,"",null,null,null,null,null,"",null,null,null,""]
[null,null,"",null,null,null,null,null,"",null,null,null,""]
[null,null,"",null,null,null,null,null,"",null,null,null,""]
[null,null,"",null,null,null,null,null,"",null,null,null,""]
[null,null,"",null,null,null,null,null,"",null,null,null,""]
[null,null,"",null,null,null,null,null,"",null,null,null,""]
[null,null,"",null,null,null,null,null,"",null,null,null,""]
[null,null,"",null,null,null,null,null,"",null,null,null,""]

{"sheet":"Tabelle1","index":2,"n_rows":1264,"n_cols":10,"rows_kept":1264,"cut":false,"hidden":true,"merged":[]}
["EDV-Nr.","Pass-Nr.","Nachname","Vorname","Alertskl.","Club","Verein","Zeilenbeschriftungen",null,"Jun"]
[8096,100491,"Bier","Harald","Sen A","BC Darmstadt","1. BSV Darmstadt 1973","AAN Schwanheim",null,"Damen"]
[33085,107080,"Bui","Si Ham","Herren","BC Darmstadt","1. BSV Darmstadt 1973","ABV Frankfurt",null,"Herren"]
[15967,100651,"Claus","Markus","Herren","BC Darmstadt","1. BSV Darmstadt 1973","BC 2000 Aschaffenburg",null,"Jug A"]
[15731,39309,"Diehl","Karl","Herren","BC Darmstadt","1. BSV Darmstadt 1973","BC 2005 Frankfurt",null,"Jug B"]
[33004,106791,"Dierks","Carsten","Herren","BC Darmstadt","1. BSV Darmstadt 1973","BC 67 Hanau",null,"Jug C"]
[8318,160,"Fischer","Rainer","Sen A","BC Darmstadt","1. BSV Darmstadt 1973","BC 75 Fortuna",null,"Sen A"]
[8322,100489,"Flaig","Achim","Sen A","BC Darmstadt","1. BSV Darmstadt 1973","BC 83 Kelsterbach",null,"Sen B"]
[33088,107084,"Herbig","Andreas","Herren","BC Darmstadt","1. BSV Darmstadt 1973","BC 89 Olympia Rüsselsheim",null,"Sen C"]
[15894,52084,"Hofstädter","Stephan","Herren","BC Darmstadt","1. BSV Darmstadt 1973","BC Bad Hersfeld",null,"Versehrte 1"]
[33072,107007,"Hönicke","Volker","Herren","BC Darmstadt","1. BSV Darmstadt 1973","BC Blau-Gelb Frankfurt",null,"Versehrte 2"]
[33038,106942,"Knobloch","Horst","Sen C","BC Darmstadt","1. BSV Darmstadt 1973","BC Darmstadt"]
[15845,51913,"Kohle","Richard","Sen C","BC Darmstadt","1. BSV Darmstadt 1973","BC Devils"]
[8701,100495,"Krüger","Helmut","Sen C","BC Darmstadt","1. BSV Darmstadt 1973","BC Eberstadt"]
[15730,null,"Netzker","Lars","Herren","BC Darmstadt","1. BSV Darmstadt 1973","BC Fusion Langen e.V."]
[33047,106967,"Ries","Volker","Sen A","BC Darmstadt","1. BSV Darmstadt 1973","BC Gießen"]
[15844,null,"Rudolf","Torsten","Herren","BC Darmstadt","1. BSV Darmstadt 1973","BC Höchst"]
[15921,null,"Rudolf","Nicole","Damen","BC Darmstadt","1. BSV Darmstadt 1973","BC Kellerstrikers"]
[15104,100493,"Schmelz","Peter","Sen B","BC Darmstadt","1. BSV Darmstadt 1973","BC Langen 83"]
[15108,100492,"Schmidt","Klaus","Sen B","BC Darmstadt","1. BSV Darmstadt 1973","BC Mühlheim"]
[15703,27466,"Schnellbacher","Peter","Sen B","BC Darmstadt","1. BSV Darmstadt 1973","BC Nidda Ffm"]
[15874,52022,"Stankowic","Sascha","Herren","BC Darmstadt","1. BSV Darmstadt 1973","BC Nord West Ffm"]
[15234,100490,"Stelzer","Rudolf","Sen B","BC Darmstadt","1. BSV Darmstadt 1973","BC Power Girls"]
[15268,100487,"Tezak","Dagmar","Sen B","BC Darmstadt","1. BSV Darmstadt 1973","BC Rebstock Ffm"]
[15269,100488,"Tezak","Janko","Sen B","BC Darmstadt","1. BSV Darmstadt 1973","BC Wiesbaden"]
[15912,67337,"Tezak","Franz","Sen C","BC Darmstadt","1. BSV Darmstadt 1973","Bowlingsportclub Bensheim 08 e.V"]
[15741,40023,"Wilson","Joseph","Herren","BC Darmstadt","1. BSV Darmstadt 1973","BSV Dieburg"]
[15757,40181,"Wolf","Harald","Sen C","BC Darmstadt","1. BSV Darmstadt 1973","BSV Oberrad"]
[8002,51928,"Ackermann","Jürgen","Herren","BSV Dieburg","1. BSV Dieburg e.V. 1992","BV 1987 Frankfurt"]
[15816,39785,"Bikowski","Manuel","Jun","BSV Dieburg","1. BSV Dieburg e.V. 1992","BV 77 Frankfurt"]
[15817,39786,"Blank","Kevin","Jug B","BSV Dieburg","1. BSV Dieburg e.V. 1992","BV Delphi Frankfurt"]
[15697,27877,"Bott","Timo","Jug A","BSV Dieburg","1. BSV Dieburg e.V. 1992","BV Frankfurt Süd"]
[15949,99943,"Bott","Michael","Herren","BSV Dieburg","1. BSV Dieburg e.V. 1992","BV Oranje Frankfurt"]
[33041,106946,"Braun","Marcel","Jun","BSV Dieburg","1. BSV Dieburg e.V. 1992","BV Römer Frankfurt"]
[15727,39283,"Breitwieser","Werner","Sen A","BSV Dieburg","1. BSV Dieburg e.V. 1992","BV Taifun Fulda"]
[15576,null,"Demski","Claudia","Damen","BSV Dieburg","1. BSV Dieburg e.V. 1992","BW Bornheim"]
[15695,null,"Demski","Tobias","Jug B","BSV Dieburg","1. BSV Dieburg e.V. 1992","City Bowler Kassel"]
[15572,null,"Eke","Ugur","Jun","BSV Dieburg","1. BSV Dieburg e.V. 1992","Citystrikers"]
[8285,null,"Farmer","Mandy-Sharon","Jun","BSV Dieburg","1. BSV Dieburg e.V. 1992","Condor Steinheim"]
[15819,null,"Göbel","Laura","Jug B","BSV Dieburg","1. BSV Dieburg e.V. 1992","Cosmos Wiesbaden"]
[15728,39285,"Grosche","Maik","Herren","BSV Dieburg","1. BSV Dieburg e.V. 1992","Finale Kassel"]
[15698,39201,"Herling","Hagen","Herren","BSV Dieburg","1. BSV Dieburg e.V. 1992","FSV Frankfurt"]
[8545,51263,"Hitzel","Walter","Sen A","BSV Dieburg","1. BSV Dieburg e.V. 1992","FTG-BC Frankfurt"]
[15501,67265,"Hitzel","Sascha","Herren","BSV Dieburg","1. BSV Dieburg e.V. 1992","I-Bahn SC 34 Ffm"]
[8597,100837,"Janowski","Siegfried","Herren","BSV Dieburg","1. BSV Dieburg e.V. 1992","Jugend Bowling Club Hanau"]
[15820,null,"Khumcharoen","Krisna","Jug A","BSV Dieburg","1. BSV Dieburg e.V. 1992","KBC Kelsterbach"]
[15729,39286,"Köhler","Nicole","Damen","BSV Dieburg","1. BSV Dieburg e.V. 1992","Mainhattan Bowlers Frankfurt"]
[8802,39915,"Mertink","Jens","Herren","BSV Dieburg","1. BSV Dieburg e.V. 1992","Phönix Frankfurt"]
[8956,null,"Popiol","Bernd","Sen C","BSV Dieburg","1. BSV Dieburg e.V. 1992","SBV"]
[8957,51949,"Popiol","Christina","Damen","BSV Dieburg","1. BSV Dieburg e.V. 1992","SW Friedberg"]
[8958,100838,"Popiol","Inke","Sen C","BSV Dieburg","1. BSV Dieburg e.V. 1992","TSV 1860 Hanau"]
[8978,null,"Rahaus","Stefan","Sen A","BSV Dieburg","1. BSV Dieburg e.V. 1992","(Leer)"]
[15846,null,"Roth","Christian","Jun","BSV Dieburg","1. BSV Dieburg e.V. 1992","Gesamtergebnis"]
[15041,100839,"Rückert","Markus","Herren","BSV Dieburg","1. BSV Dieburg e.V. 1992"]
[15045,100840,"Ruhlmann","Thomas","Herren","BSV Dieburg","1. BSV Dieburg e.V. 1992"]
[15726,39281,"Schaffrina","Egon","Sen A","BSV Dieburg","1. BSV Dieburg e.V. 1992"]
[33021,106853,"Schuster","Markus","Herren","BSV Dieburg","1. BSV Dieburg e.V. 1992"]
[15209,100841,"Spiegler","Bernd","Sen C","BSV Dieburg","1. BSV Dieburg e.V. 1992"]
[15758,39537,"Stolz","Torsten","Sen A","BSV Dieburg","1. BSV Dieburg e.V. 1992"]
[15323,100842,"Vitasovic","Kresimir","Herren","BSV Dieburg","1. BSV Dieburg e.V. 1992"]
[15686,27492,"Becker","Holger","Sen A","BC Eberstadt","1. BSV Eberstadt"]
[8304,100147,"Fink","Peter","Sen C","BC Eberstadt","1. BSV Eberstadt"]
[8694,89151,"Kraft","Edgar","Sen B","BC Eberstadt","1. BSV Eberstadt"]
[33051,106973,"Neubauer","Eva","Sen B","BC Eberstadt","1. BSV Eberstadt"]
[15145,null,"Schöneck","Hans-Werner","Sen C","BC Eberstadt","1. BSV Eberstadt"]
[15173,168,"Schwermer","Thomas","Sen A","BC Eberstadt","1. BSV Eberstadt"]
[15230,27446,"Stein","Angelika","Sen C","BC Eberstadt","1. BSV Eberstadt"]
[15294,100148,"Trebes","Stefan","Herren","BC Eberstadt","1. BSV Eberstadt"]
[15295,100149,"Trebes","Thomas","Sen A","BC Eberstadt","1. BSV Eberstadt"]
[33052,106972,"Trebes","Kerstin","Jun","BC Eberstadt","1. BSV Eberstadt"]
[15867,51993,"Welkerling","Hans","Sen C","BC Eberstadt","1. BSV Eberstadt"]
[15826,null,"Aumann","Torben","Herren","BC Gießen","1. BSV Gießen"]
[8039,null,"Baker","Richard","Sen A","BC Gießen","1. BSV Gießen"]
[33026,67633,"Balzer","Phyllis","Jug A","BC Gießen","1. BSV Gießen"]
[33043,67664,"Balzer","Armin","Sen A","BC Gießen","1. BSV Gießen"]
[8068,67521,"Becker","Elke","Sen C","BC Gießen","1. BSV Gießen"]
[15657,274,"Becker","Britta","Damen","BC Gießen","1. BSV Gießen"]
[8072,88696,"Becker-Daschmann","Dagmar","Damen","BC Gießen","1. BSV Gießen"]
[15898,null,"Belardi","Tanja","Damen","BC Gießen","1. BSV Gießen"]
[15646,89296,"Beyer","Petra","Sen B","BC Gießen","1. BSV Gießen"]
[15704,27456,"Biskoping","Robin","Herren","BC Gießen","1. BSV Gießen"]
[15896,51310,"Bopf","Alexander","Herren","BC Gießen","1. BSV Gießen"]
[8140,67519,"Braun","Hartmut","Sen B","BC Gießen","1. BSV Gießen"]
[8209,88698,"Daschmann","Helmut","Sen A","BC Gießen","1. BSV Gießen"]
[15746,null,"Ebell","Björn","Herren","BC Gießen","1. BSV Gießen"]
[15762,39347,"Fritzjus","Jasmin","Damen","BC Gießen","1. BSV Gießen"]
[15644,1069,"Gilbert","Bertram","Sen B","BC Gießen","1. BSV Gießen"]
[6347,67458,"Gollnow","Sabrina","Damen","BC Gießen","1. BSV Gießen"]
[8435,100432,"Güldner","Sascha","Herren","BC Gießen","1. BSV Gießen"]
[8462,100372,"Harrison","Mark","Herren","BC Gießen","1. BSV Gießen"]
[8509,692,"Henrich","Elvira","Sen A","BC Gießen","1. BSV Gießen"]
[8511,51303,"Henrich","Heinz","Sen B","BC Gießen","1. BSV Gießen"]
[8512,51614,"Henrich","Katharina","Damen","BC Gießen","1. BSV Gießen"]
[8559,526,"Höpfel","Brigitte","Sen C","BC Gießen","1. BSV Gießen"]
[15664,null,"Kilsbach","Thomas","Sen A","BC Gießen","1. BSV Gießen"]
[8668,null,"Koch","Birgit","Sen A","BC Gießen","1. BSV Gießen"]
[15821,51368,"Körbitz","Dirk","Herren","BC Gießen","1. BSV Gießen"]
[14034,27205,"Lohmar","Klaus","Sen B","BC Gießen","1. BSV Gießen"]
[6432,67468,"Moritz","Ramon","Herren","BC Gießen","1. BSV Gießen"]
[15973,100745,"Noack","Thomas","Herren","BC Gießen","1. BSV Gießen"]
[8910,67520,"Opper","Andreas","Herren","BC Gießen","1. BSV Gießen"]
[8911,67522,"Opper","Michael","Herren","BC Gießen","1. BSV Gießen"]
[8938,100673,"Pest","Hagen","Herren","BC Gießen","1. BSV Gießen"]
[15645,null,"Porter","Tanja","Damen","BC Gießen","1. BSV Gießen"]
[8976,null,"Räder","Peter","Herren","BC Gießen","1. BSV Gießen"]
[15942,89295,"Schaaf","Sandro","Herren","BC Gießen","1. BSV Gießen"]
[15095,89297,"Schinkario","Thomas","Herren","BC Gießen","1. BSV Gießen"]
[15133,67518,"Schneider","Volker","Sen A","BC Gießen","1. BSV Gießen"]
[15143,null,"Schön","Justus","Jun","BC Gießen","1. BSV Gießen"]
[33035,106938,"Teuser","Franziska","Damen","BC Gießen","1. BSV Gießen"]
[15723,null,"Uwekoolani","Daniel","Herren","BC Gießen","1. BSV Gießen"]
[15375,null,"Wiesner","Christoph","Herren","BC Gießen","1. BSV Gießen"]
[8062,88695,"Beck","Dietmar","Sen B","BC 2000 Aschaffenburg","1. BV Aschaffenburg e.V."]
[33077,107031,"Becker","Aileen","Damen","BC 2000 Aschaffenburg","1. BV Aschaffenburg e.V."]
[8077,106594,"Beissler","Andrea","Damen","BC 2000 Aschaffenburg","1. BV Aschaffenburg e.V."]
[8086,106353,"Berardi","Danny","Sen B","BC 2000 Aschaffenburg","1. BV Aschaffenburg e.V."]
[8087,106353,"Berardi","Danny","Jun","BC 2000 Aschaffenburg","1. BV Aschaffenburg e.V."]
[8089,39348,"Berardi","Stacy","Sen A","BC 2000 Aschaffenburg","1. BV Aschaffenburg e.V."]
[8107,88706,"Blank","Franz","Sen A","BC 2000 Aschaffenburg","1. BV Aschaffenburg e.V."]
[33068,106999,"Bruckmann","Heike","Damen","BC 2000 Aschaffenburg","1. BV Aschaffenburg e.V."]
[8169,null,"Burgess","Mark","Herren","BC 2000 Aschaffenburg","1. BV Aschaffenburg e.V."]
[33013,106828,"Burgess","David","Herren","BC 2000 Aschaffenburg","1. BV Aschaffenburg e.V."]
[8186,88697,"Carl","Britta","Damen","BC 2000 Aschaffenburg","1. BV Aschaffenburg e.V."]
[15835,51627,"Fenderl","Stefan","Herren","BC 2000 Aschaffenburg","1. BV Aschaffenburg e.V."]
[8352,88702,"Fries","Karlheinz","Sen A","BC 2000 Aschaffenburg","1. BV Aschaffenburg e.V."]
[8353,null,"Fries","Marcel","Jun","BC 2000 Aschaffenburg","1. BV Aschaffenburg e.V."]
[15951,100253,"Fritsche-Syndikus","Michael","Sen A","BC 2000 Aschaffenburg","1. BV Aschaffenburg e.V."]
[8356,67270,"Frobenius","Sven","Herren","BC 2000 Aschaffenburg","1. BV Aschaffenburg e.V."]
[8718,27609,"Frobenius","Romina","Damen","BC 2000 Aschaffenburg","1. BV Aschaffenburg e.V."]
[8472,88699,"Heeg","Herbert","Sen A","BC 2000 Aschaffenburg","1. BV Aschaffenburg e.V."]
[8473,52015,"Heeg","Renate","Sen A","BC 2000 Aschaffenburg","1. BV Aschaffenburg e.V."]
[8474,89163,"Heeg","Sonja","Damen","BC 2000 Aschaffenburg","1. BV Aschaffenburg e.V."]
[15834,51626,"Heeg","Heiko","Herren","BC 2000 Aschaffenburg","1. BV Aschaffenburg e.V."]
[15833,51625,"Hein","Marco","Herren","BC 2000 Aschaffenburg","1. BV Aschaffenburg e.V."]
[8491,null,"Held","Joshua","Jug A","BC 2000 Aschaffenburg","1. BV Aschaffenburg e.V."]
[8497,null,"Heller","Andreas","Sen A","BC 2000 Aschaffenburg","1. BV Aschaffenburg e.V."]
[8548,null,"Hock","Thomas","Herren","BC 2000 Aschaffenburg","1. BV Aschaffenburg e.V."]
[8583,689,"Inglese","Sandro","Herren","BC 2000 Aschaffenburg","1. BV Aschaffenburg e.V."]
[8590,null,"Jambresic","Yvonne","Damen","BC 2000 Aschaffenburg","1. BV Aschaffenburg e.V."]
[15840,51679,"Knecht","Timo","Jun","BC 2000 Aschaffenburg","1. BV Aschaffenburg e.V."]
[15887,66901,"Krebs","Thomas","Herren","BC 2000 Aschaffenburg","1. BV Aschaffenburg e.V."]
[15919,66900,"Kütter","Stefan","Herren","BC 2000 Aschaffenburg","1. BV Aschaffenburg e.V."]
[8752,106657,"Löffler","Monika","Sen A","BC 2000 Aschaffenburg","1. BV Aschaffenburg e.V."]
[33012,106829,"Löffler","Dieter","Herren","BC 2000 Aschaffenburg","1. BV Aschaffenburg e.V."]
[8624,null,"Melching","Janin","Damen","BC 2000 Aschaffenburg","1. BV Aschaffenburg e.V."]
[8843,27289,"Merkel","Gina-Maria","Jug A","BC 2000 Aschaffenburg","1. BV Aschaffenburg e.V."]
[15608,899,"Merkel","Ralf","Sen A","BC 2000 Aschaffenburg","1. BV Aschaffenburg e.V."]
[15612,895,"Merkel","Marcel","Jun","BC 2000 Aschaffenburg","1. BV Aschaffenburg e.V."]
[8812,null,"Michalak","Maria","Sen B","BC 2000 Aschaffenburg","1. BV Aschaffenburg e.V."]
[15775,39770,"Nagel","Christopher","Jun","BC 2000 Aschaffenburg","1. BV Aschaffenburg e.V."]
[8903,88704,"Och","Jürgen","Sen B","BC 2000 Aschaffenburg","1. BV Aschaffenburg e.V."]
[8949,532,"Pilo","Salvatore","Sen A","BC 2000 Aschaffenburg","1. BV Aschaffenburg e.V."]
[8954,106576,"Pöhner","Cornelia","Damen","BC 2000 Aschaffenburg","1. BV Aschaffenburg e.V."]
[15398,27905,"Reckemeier","Michaela","Damen","BC 2000 Aschaffenburg","1. BV Aschaffenburg e.V."]
[15009,null,"Reuss","Annemarie","Sen A","BC 2000 Aschaffenburg","1. BV Aschaffenburg e.V."]
[15010,null,"Reuss","Bernd","Sen B","BC 2000 Aschaffenburg","1. BV Aschaffenburg e.V."]
[15011,67267,"Reuss","Dominic","Herren","BC 2000 Aschaffenburg","1. BV Aschaffenburg e.V."]
[15021,null,"Röder","Britt","Damen","BC 2000 Aschaffenburg","1. BV Aschaffenburg e.V."]
[15087,88705,"Schiller","Joachim","Herren","BC 2000 Aschaffenburg","1. BV Aschaffenburg e.V."]
[15106,27754,"Schmidt","Jennifer","Damen","BC 2000 Aschaffenburg","1. BV Aschaffenburg e.V."]
[15201,67268,"Sommer","Gabriele","Sen B","BC 2000 Aschaffenburg","1. BV Aschaffenburg e.V."]
[15202,89125,"Sommer","Rainer","Sen B","BC 2000 Aschaffenburg","1. BV Aschaffenburg e.V."]
[15976,106574,"Stapper","Tim","Jug B","BC 2000 Aschaffenburg","1. BV Aschaffenburg e.V."]
[15812,51273,"Thierolf","Alois","Sen B","BC 2000 Aschaffenburg","1. BV Aschaffenburg e.V."]
[15356,67327,"Weis","Björn","Herren","BC 2000 Aschaffenburg","1. BV Aschaffenburg e.V."]
[15829,51559,"Wiederhold","Ann-Kathrin","Jug A","BC 2000 Aschaffenburg","1. BV Aschaffenburg e.V."]
[15403,67269,"Wüst","Angela","Damen","BC 2000 Aschaffenburg","1. BV Aschaffenburg e.V."]
[8001,39675,"Ackermann","Brigitte","Sen B","ABV Frankfurt","ABV Frankfurt"]
[8029,670,"Aufschläger","Jochen","Herren","ABV Frankfurt","ABV Frankfurt"]
[8208,39673,"Dähler","Mark","Herren","ABV Frankfurt","ABV Frankfurt"]
[15886,66961,"Dozckal","Thomas","Herren","ABV Frankfurt","ABV Frankfurt"]
[8272,39636,"Emmerich","Wolfgang","Sen C","ABV Frankfurt","ABV Frankfurt"]
[8332,null,"Forster","Florian","Herren","ABV Frankfurt","ABV Frankfurt"]
[8335,null,"Forster","Fred-Fabian","Herren","ABV Frankfurt","ABV Frankfurt"]
[302,51852,"Hemmelmann","Dirk","Herren","ABV Frankfurt","ABV Frankfurt"]
[8514,67314,"Henrich","Sven","Jun","ABV Frankfurt","ABV Frankfurt"]
[8521,39676,"Herre","Manuela","Sen B","ABV Frankfurt","ABV Frankfurt"]
[8529,null,"Hess","Tobias","Herren","ABV Frankfurt","ABV Frankfurt"]
[8670,39970,"Koch","Monika","Sen C","ABV Frankfurt","ABV Frankfurt"]
[8671,39371,"Koch","Robert","Herren","ABV Frankfurt","ABV Frankfurt"]
[8759,39664,"Lucke","Joachim","Sen C","ABV Frankfurt","ABV Frankfurt"]
[8760,39679,"Lucke","Marc","Herren","ABV Frankfurt","ABV Frankfurt"]
[8796,39677,"Meissner","Alexandra","Damen","ABV Frankfurt","ABV Frankfurt"]
[8870,39667,"Naujoks","Angela","Sen A","ABV Frankfurt","ABV Frankfurt"]
[8922,27467,"Pachonik","Benjamin","Herren","ABV Frankfurt","ABV Frankfurt"]
[960,39788,"Polte","Ulrike","Damen","ABV Frankfurt","ABV Frankfurt"]
[7726,100565,"Prell","Patrick","Herren","ABV Frankfurt","ABV Frankfurt"]
[15183,51490,"Seifert","Barbora","Damen","ABV Frankfurt","ABV Frankfurt"]
[15529,164,"Tezak-Kilb","Nicole","Damen","ABV Frankfurt","ABV Frankfurt"]
[15270,39671,"Tharra","Marina","Sen A","ABV Frankfurt","ABV Frankfurt"]
[15389,66962,"Wittenborg","Elke","Sen A","ABV Frankfurt","ABV Frankfurt"]
[8341,null,"Franke","Helmut","Sen B","BC Bad Hersfeld","BC Bad Hersfeld"]
[8506,51832,"Henkel","Klaus","Sen A","BC Bad Hersfeld","BC Bad Hersfeld"]
[8555,null,"Hofmann","Christof","Herren","BC Bad Hersfeld","BC Bad Hersfeld"]
[8742,100430,"Lendzian","Rainer","Sen B","BC Bad Hersfeld","BC Bad Hersfeld"]
[8789,null,"Maul","Manfred","Sen A","BC Bad Hersfeld","BC Bad Hersfeld"]
[15042,100429,"Rüffer","Andreas","Sen A","BC Bad Hersfeld","BC Bad Hersfeld"]
[15516,100428,"Schmidt","Robert","Sen A","BC Bad Hersfeld","BC Bad Hersfeld"]
[15839,51672,"Thiel","Manfred","Herren","BC Bad Hersfeld","BC Bad Hersfeld"]
[33024,106888,"Thiel","Uwe","Herren","BC Bad Hersfeld","BC Bad Hersfeld"]
[15344,476,"Watje","Peter","Sen C","BC Bad Hersfeld","BC Bad Hersfeld"]
[33028,106913,"Angersbach","Christina","Damen","Citystrikers","BC Citystrikers"]
[15738,39389,"Beute","Carsten","Herren","Citystrikers","BC Citystrikers"]
[8181,27115,"Callsen","Thomas","Herren","Citystrikers","BC Citystrikers"]
[33001,51500,"Hampel","Peter","Sen A","Citystrikers","BC Citystrikers"]
[8499,51952,"Heller","Roswitha","Sen C","Citystrikers","BC Citystrikers"]
[15848,51891,"Jünemann","Ulrike","Damen","Citystrikers","BC Citystrikers"]
[15786,39992,"Küllmer","Thomas","Herren","Citystrikers","BC Citystrikers"]
[33027,106914,"Mansel","Klaus","Sen B","Citystrikers","BC Citystrikers"]
[15972,100344,"Müller","Tobias","Herren","Citystrikers","BC Citystrikers"]
[15851,51886,"Mütze","Kai","Herren","Citystrikers","BC Citystrikers"]
[15136,106834,"Scholdra","Peter","Sen A","Citystrikers","BC Citystrikers"]
[15605,27254,"Schrage","Carlo","Sen A","Citystrikers","BC Citystrikers"]
[15847,51889,"Schrage","Martina","Damen","Citystrikers","BC Citystrikers"]
[15865,51323,"Schulz","Michaela","Damen","Citystrikers","BC Citystrikers"]
[15975,100748,"Spohr","Philipp","Herren","Citystrikers","BC Citystrikers"]
[33016,106835,"Triebel","Daniela","Damen","Citystrikers","BC Citystrikers"]
[15849,51887,"Widuckel","Renè","Herren","Citystrikers","BC Citystrikers"]
[15523,111,"Cheklal","Djamel","Jug A","Cosmos Wiesbaden","BC Cosmos Wiesbaden"]
[15654,51481,"Finkenauer","Sandra","Damen","Cosmos Wiesbaden","BC Cosmos Wiesbaden"]
[8316,100814,"Fischer","Peter","Sen A","Cosmos Wiesbaden","BC Cosmos Wiesbaden"]
[8554,622,"Hoffmann","Sonja","Damen","Cosmos Wiesbaden","BC Cosmos Wiesbaden"]
[15524,112,"Hofmann","Mario","Jun","Cosmos Wiesbaden","BC Cosmos Wiesbaden"]
[15747,40067,"Hofmann","Susan","Damen","Cosmos Wiesbaden","BC Cosmos Wiesbaden"]
[10022,27093,"Hüllenhütter","Claudia","Sen A","Cosmos Wiesbaden","BC Cosmos Wiesbaden"]
[8699,null,"Krenzer","Monika","Sen A","Cosmos Wiesbaden","BC Cosmos Wiesbaden"]
[8736,null,"Lausmann","Jürgen","Herren","Cosmos Wiesbaden","BC Cosmos Wiesbaden"]
[8753,1035,"Long","Diana","Sen A","Cosmos Wiesbaden","BC Cosmos Wiesbaden"]
[8845,51480,"Müller","Claudia","Damen","Cosmos Wiesbaden","BC Cosmos Wiesbaden"]
[8853,51701,"Müller","Jochen","Sen A","Cosmos Wiesbaden","BC Cosmos Wiesbaden"]
[8890,106670,"Nicolaus","Veit","Sen A","Cosmos Wiesbaden","BC Cosmos Wiesbaden"]
[15027,106555,"Rogat","Curd","Sen A","Cosmos Wiesbaden","BC Cosmos Wiesbaden"]
[15137,null,"Scholl","Hans","Sen B","Cosmos Wiesbaden","BC Cosmos Wiesbaden"]
[15199,106669,"Slawik","Erwin","Sen A","Cosmos Wiesbaden","BC Cosmos Wiesbaden"]
[15240,705,"Steul","Susan","Sen A","Cosmos Wiesbaden","BC Cosmos Wiesbaden"]
[15247,null,"Stolz","Christian","Herren","Cosmos Wiesbaden","BC Cosmos Wiesbaden"]
[15946,89463,"Teske","Martin","Herren","Cosmos Wiesbaden","BC Cosmos Wiesbaden"]
[15316,null,"Veith","Marcus","Herren","Cosmos Wiesbaden","BC Cosmos Wiesbaden"]
[8012,51134,"Albert","Markus","Herren","BC Fusion Langen e.V.","BC Fusion Langen e.V."]
[15964,100649,"Barke","Carsten","Sen A","BC Fusion Langen e.V.","BC Fusion Langen e.V."]
[15965,100648,"Barke-Ziegler","Elke","Sen A","BC Fusion Langen e.V.","BC Fusion Langen e.V."]
[15569,528,"Beumer","Christoph","Herren","BC Fusion Langen e.V.","BC Fusion Langen e.V."]
[33017,106836,"Bräuner","Markus","Jun","BC Fusion Langen e.V.","BC Fusion Langen e.V."]
[33054,106982,"Göbel","Marcel","Herren","BC Fusion Langen e.V.","BC Fusion Langen e.V."]
[10304,132407,"Heber","Bernd","Sen A","BC Fusion Langen e.V.","BC Fusion Langen e.V."]
[33056,106979,"Heim","Melanie","Jun","BC Fusion Langen e.V.","BC Fusion Langen e.V."]
[8488,39776,"Heinrich","Thorsten","Sen A","BC Fusion Langen e.V.","BC Fusion Langen e.V."]
[8806,67485,"Meyer","Helmut","Herren","BC Fusion Langen e.V.","BC Fusion Langen e.V."]
[10301,106916,"Mogk","Dominik","Herren","BC Fusion Langen e.V.","BC Fusion Langen e.V."]
[8835,67271,"Mondorf","Alexander","Herren","BC Fusion Langen e.V.","BC Fusion Langen e.V."]
[15598,954,"Rott","Waltraud","Sen B","BC Fusion Langen e.V.","BC Fusion Langen e.V."]
[22157,106980,"Sager","Sven","Herren","BC Fusion Langen e.V.","BC Fusion Langen e.V."]
[33053,106983,"Seel","Marcel","Herren","BC Fusion Langen e.V.","BC Fusion Langen e.V."]
[15575,307,"Seemann","Thomas","Herren","BC Fusion Langen e.V.","BC Fusion Langen e.V."]
[10300,106738,"Seyfarth","Robert","Herren","BC Fusion Langen e.V.","BC Fusion Langen e.V."]
[33055,106891,"Siebert","Björn","Sen A","BC Fusion Langen e.V.","BC Fusion Langen e.V."]
[15830,null,"Wagner","Simon","Herren","BC Fusion Langen e.V.","BC Fusion Langen e.V."]
[10068,106984,"Winter","Asko","Herren","BC Fusion Langen e.V.","BC Fusion Langen e.V."]
[33057,106978,"Wünning","Steve","Herren","BC Fusion Langen e.V.","BC Fusion Langen e.V."]
[33058,106977,"Ziegler","Andreas","Herren","BC Fusion Langen e.V.","BC Fusion Langen e.V."]
[8020,null,"Andersch","Andreas","Herren","BC Kellerstrikers","BC Keller Strikers Dillenburg e.V."]
[15514,null,"Behr","Thomas","Herren","BC Kellerstrikers","BC Keller Strikers Dillenburg e.V."]
[24169,27186,"Brach","Patrick","Herren","BC Kellerstrikers","BC Keller Strikers Dillenburg e.V."]
[8277,100778,"Erhardt","Alexander","Herren","BC Kellerstrikers","BC Keller Strikers Dillenburg e.V."]
[15371,27019,"Fuchs","Anatol","Herren","BC Kellerstrikers","BC Keller Strikers Dillenburg e.V."]
[15542,null,"Fuchs","Olga","Damen","BC Kellerstrikers","BC Keller Strikers Dillenburg e.V."]
[15871,null,"Garcia Prol","Antonio","Herren","BC Kellerstrikers","BC Keller Strikers Dillenburg e.V."]
[15651,27021,"Günther","Hubert","Herren","BC Kellerstrikers","BC Keller Strikers Dillenburg e.V."]
[15870,51994,"Günther","Christof","Herren","BC Kellerstrikers","BC Keller Strikers Dillenburg e.V."]
[8438,100779,"Güttich","Sven","Herren","BC Kellerstrikers","BC Keller Strikers Dillenburg e.V."]
[33020,106849,"Henze","Markus","Herren","BC Kellerstrikers","BC Keller Strikers Dillenburg e.V."]
[15547,null,"Knöll","Vitali","Herren","BC Kellerstrikers","BC Keller Strikers Dillenburg e.V."]
[8857,100780,"Müller","Michael","Sen A","BC Kellerstrikers","BC Keller Strikers Dillenburg e.V."]
[15546,224,"Rifinius","Jakob","Herren","BC Kellerstrikers","BC Keller Strikers Dillenburg e.V."]
[15798,51122,"Saalbach","Daniel","Herren","BC Kellerstrikers","BC Keller Strikers Dillenburg e.V."]
[15672,27409,"Schäfer","Daniel","Herren","BC Kellerstrikers","BC Keller Strikers Dillenburg e.V."]
[15171,100777,"Schweitzer","Jan","Herren","BC Kellerstrikers","BC Keller Strikers Dillenburg e.V."]
[8010,null,"Alabiso","Luana","Jug A","BC Wiesbaden","BC Wiesbaden e.V."]
[15678,null,"Atmatzidis","Charalambos","Jug A","BC Wiesbaden","BC Wiesbaden e.V."]
[8088,null,"Berardi","Sophia","Jug A","BC Wiesbaden","BC Wiesbaden e.V."]
[8125,106355,"Bohrmann","Berthold","Sen A","BC Wiesbaden","BC Wiesbaden e.V."]
[8126,106356,"Bohrmann","Tim","Herren","BC Wiesbaden","BC Wiesbaden e.V."]
[8163,null,"Bucsa","Andone","Herren","BC Wiesbaden","BC Wiesbaden e.V."]
[8235,106357,"Diehl","Claudia","Sen A","BC Wiesbaden","BC Wiesbaden e.V."]
[8237,null,"Diehl","Johann","Sen A","BC Wiesbaden","BC Wiesbaden e.V."]
[8260,null,"Drössel","Andrew","Jug A","BC Wiesbaden","BC Wiesbaden e.V."]
[15479,null,"Drössel","Detlev","Sen A","BC Wiesbaden","BC Wiesbaden e.V."]
[8270,51830,"Elsenberger","Horst","Sen A","BC Wiesbaden","BC Wiesbaden e.V."]
[8295,null,"Feller","Thomas","Sen A","BC Wiesbaden","BC Wiesbaden e.V."]
[8439,null,"Haas","Anna-Maria","Sen A","BC Wiesbaden","BC Wiesbaden e.V."]
[8447,null,"Hagen","Elfie","Damen","BC Wiesbaden","BC Wiesbaden e.V."]
[33078,107033,"Hargus","Rodney","Herren","BC Wiesbaden","BC Wiesbaden e.V."]
[15753,null,"Hörner","Sascha","Jug A","BC Wiesbaden","BC Wiesbaden e.V."]
[15633,1046,"Huber","Sebastian","Herren","BC Wiesbaden","BC Wiesbaden e.V."]
[33089,107088,"Hüllenhütter","Peter","Sen A","BC Wiesbaden","BC Wiesbaden e.V."]
[15478,106359,"Kluge","Christian","Jun","BC Wiesbaden","BC Wiesbaden e.V."]
[8679,null,"Kompauer","Eva-Maria","Damen","BC Wiesbaden","BC Wiesbaden e.V."]
[8683,51831,"Könner","Horst","Herren","BC Wiesbaden","BC Wiesbaden e.V."]
[15652,null,"Lange","Heiner","Herren","BC Wiesbaden","BC Wiesbaden e.V."]
[15971,null,"Matle","Silvia","Sen A","BC Wiesbaden","BC Wiesbaden e.V."]
[15634,1045,"Mirza","Baber-Jan","Herren","BC Wiesbaden","BC Wiesbaden e.V."]
[8941,null,"Petri","Christian","Herren","BC Wiesbaden","BC Wiesbaden e.V."]
[15922,40167,"Plaumann","Kay","Herren","BC Wiesbaden","BC Wiesbaden e.V."]
[15679,27291,"Rabenseifner","René","Jun","BC Wiesbaden","BC Wiesbaden e.V."]
[15006,771713,"Retke","Hannelore","Sen B","BC Wiesbaden","BC Wiesbaden e.V."]
[15983,106679,"Richter","Nick","Herren","BC Wiesbaden","BC Wiesbaden e.V."]
[15855,null,"Schugt","Brigitte","Sen A","BC Wiesbaden","BC Wiesbaden e.V."]
[15182,106360,"Seib","Petra","Damen","BC Wiesbaden","BC Wiesbaden e.V."]
[15838,51829,"Smith","Terence","Herren","BC Wiesbaden","BC Wiesbaden e.V."]
[15761,40169,"Sperle","Calvin","Jug C","BC Wiesbaden","BC Wiesbaden e.V."]
[33008,106795,"Tobi","Valentin","Jug A","BC Wiesbaden","BC Wiesbaden e.V."]
[15301,106361,"Triesch","Robert","Jun","BC Wiesbaden","BC Wiesbaden e.V."]
[15998,106765,"Vogt","Michael","Herren","BC Wiesbaden","BC Wiesbaden e.V."]
[15349,27760,"Weidl","Sebastian","Herren","BC Wiesbaden","BC Wiesbaden e.V."]
[15760,null,"Wiegand","Ilias","Jug C","BC Wiesbaden","BC Wiesbaden e.V."]
[15402,106362,"Wünschirs","Daniel","Jun","BC Wiesbaden","BC Wiesbaden e.V."]
[15525,110,"Wünschirs","Heiko","Jun","BC Wiesbaden","BC Wiesbaden e.V."]
[15244,null,"Stolte","Gabriele","Sen A","BW Bornheim","Blau Weiss Bornheim"]
[15245,null,"Stolte","Günther","Sen A","BW Bornheim","Blau Weiss Bornheim"]
[15913,67345,"Berner","Sascha","Herren","Bowlingsportclub Bensheim 08 e.V","Bowlingsportclub Bensheim 08 e.V"]
[14079,59135,"Czermak","Wolfgang","Herren","Bowlingsportclub Bensheim 08 e.V","Bowlingsportclub Bensheim 08 e.V"]
[33007,106794,"Fasser","Rupert","Sen B","Bowlingsportclub Bensheim 08 e.V","Bowlingsportclub Bensheim 08 e.V"]
[33065,106990,"Gaither","James","Herren","Bowlingsportclub Bensheim 08 e.V","Bowlingsportclub Bensheim 08 e.V"]
[33102,132405,"Gaither","Janette","Damen","Bowlingsportclub Bensheim 08 e.V","Bowlingsportclub Bensheim 08 e.V"]
[15920,null,"Gerstel","Uwe","Sen A","Bowlingsportclub Bensheim 08 e.V","Bowlingsportclub Bensheim 08 e.V"]
[33023,106858,"Hacher","Carina","Sen A","Bowlingsportclub Bensheim 08 e.V","Bowlingsportclub Bensheim 08 e.V"]
[15906,67241,"Hartmann","Heinz","Sen C","Bowlingsportclub Bensheim 08 e.V","Bowlingsportclub Bensheim 08 e.V"]
[33063,106992,"Hebenstreit","Christina","Damen","Bowlingsportclub Bensheim 08 e.V","Bowlingsportclub Bensheim 08 e.V"]
[15953,100356,"Heim","Karl","Herren","Bowlingsportclub Bensheim 08 e.V","Bowlingsportclub Bensheim 08 e.V"]
[15907,67242,"Hellersberg","Dulce","Damen","Bowlingsportclub Bensheim 08 e.V","Bowlingsportclub Bensheim 08 e.V"]
[33062,106993,"Jäger","Lisa","Damen","Bowlingsportclub Bensheim 08 e.V","Bowlingsportclub Bensheim 08 e.V"]
[14002,67392,"Keil","Patrick","Herren","Bowlingsportclub Bensheim 08 e.V","Bowlingsportclub Bensheim 08 e.V"]
[14684,null,"Keil","Dominik","Jun","Bowlingsportclub Bensheim 08 e.V","Bowlingsportclub Bensheim 08 e.V"]
[14689,26375,"Keil","Hans-Peter","Sen A","Bowlingsportclub Bensheim 08 e.V","Bowlingsportclub Bensheim 08 e.V"]
[15959,100564,"König","Florian","Herren","Bowlingsportclub Bensheim 08 e.V","Bowlingsportclub Bensheim 08 e.V"]
[33064,106991,"Kruse","Lowell","Sen C","Bowlingsportclub Bensheim 08 e.V","Bowlingsportclub Bensheim 08 e.V"]
[15902,67238,"Kuderna","Bianka","Damen","Bowlingsportclub Bensheim 08 e.V","Bowlingsportclub Bensheim 08 e.V"]
[15904,67240,"Kuderna","Alexander","Herren","Bowlingsportclub Bensheim 08 e.V","Bowlingsportclub Bensheim 08 e.V"]
[33006,106793,"Lauber","Melanie","Damen","Bowlingsportclub Bensheim 08 e.V","Bowlingsportclub Bensheim 08 e.V"]
[15793,51110,"Leonhardt","Yves","Herren","Bowlingsportclub Bensheim 08 e.V","Bowlingsportclub Bensheim 08 e.V"]
[15905,67249,"Listmann","Thorsten","Herren","Bowlingsportclub Bensheim 08 e.V","Bowlingsportclub Bensheim 08 e.V"]
[15954,100355,"Mlotek","Marc","Herren","Bowlingsportclub Bensheim 08 e.V","Bowlingsportclub Bensheim 08 e.V"]
[15797,null,"Modrak","Rüdiger","Herren","Bowlingsportclub Bensheim 08 e.V","Bowlingsportclub Bensheim 08 e.V"]
[15960,100563,"Neff","Nico","Jun","Bowlingsportclub Bensheim 08 e.V","Bowlingsportclub Bensheim 08 e.V"]
[14693,null,"Prell","Christin","Jun","Bowlingsportclub Bensheim 08 e.V","Bowlingsportclub Bensheim 08 e.V"]
[15837,51681,"Reich","Michael","Herren","Bowlingsportclub Bensheim 08 e.V","Bowlingsportclub Bensheim 08 e.V"]
[15899,67235,"Reich","Peggy","Damen","Bowlingsportclub Bensheim 08 e.V","Bowlingsportclub Bensheim 08 e.V"]
[15900,67236,"Reich","Bianca","Jug A","Bowlingsportclub Bensheim 08 e.V","Bowlingsportclub Bensheim 08 e.V"]
[33005,106792,"Rosenboom","Nicole","Damen","Bowlingsportclub Bensheim 08 e.V","Bowlingsportclub Bensheim 08 e.V"]
[15836,null,"Schedlbauer","Robert","Sen A","Bowlingsportclub Bensheim 08 e.V","Bowlingsportclub Bensheim 08 e.V"]
[33079,107040,"Schmalkalt","Tobias","Herren","Bowlingsportclub Bensheim 08 e.V","Bowlingsportclub Bensheim 08 e.V"]
[15952,100357,"Thatcher","Daniel","Herren","Bowlingsportclub Bensheim 08 e.V","Bowlingsportclub Bensheim 08 e.V"]
[15903,null,"Voelker-Hoyns","Heike","Sen A","Bowlingsportclub Bensheim 08 e.V","Bowlingsportclub Bensheim 08 e.V"]
[15873,52020,"Westram","Boris","Herren","Bowlingsportclub Bensheim 08 e.V","Bowlingsportclub Bensheim 08 e.V"]
[15800,null,"Wiegand","Daniel","Herren","Bowlingsportclub Bensheim 08 e.V","Bowlingsportclub Bensheim 08 e.V"]
[15794,null,"Winkler","Peter","Herren","Bowlingsportclub Bensheim 08 e.V","Bowlingsportclub Bensheim 08 e.V"]
[15795,51108,"Wright","Claudia","Damen","Bowlingsportclub Bensheim 08 e.V","Bowlingsportclub Bensheim 08 e.V"]
[15796,51109,"Wright","Mark","Herren","Bowlingsportclub Bensheim 08 e.V","Bowlingsportclub Bensheim 08 e.V"]
[15901,67237,"Wright","David","Jug A","Bowlingsportclub Bensheim 08 e.V","Bowlingsportclub Bensheim 08 e.V"]
[8099,51236,"Bigall","Iris","Damen","ABV Frankfurt","BSV 1990 Oberrad"]
[8385,null,"Georg","Sebastian","Herren","ABV Frankfurt","BSV 1990 Oberrad"]
[15082,40079,"Scheuermann","Patrizia","Jun","ABV Frankfurt","BSV 1990 Oberrad"]
[15351,null,"Weihert","Christine","Sen A","ABV Frankfurt","BSV 1990 Oberrad"]
[8098,39674,"Bigall","Eileen","Sen A","BSV Oberrad","BSV 1990 Oberrad"]
[8100,39663,"Bigall","Marcel","Herren","BSV Oberrad","BSV 1990 Oberrad"]
[8101,39665,"Bigall","Rene","Herren","BSV Oberrad","BSV 1990 Oberrad"]
[8102,39662,"Bigall","Volker","Herren","BSV Oberrad","BSV 1990 Oberrad"]
[8501,106872,"Hellmuth","Wilhelm","Herren","BSV Oberrad","BSV 1990 Oberrad"]
[8646,39678,"Kistinger","Bernhard","Sen A","BSV Oberrad","BSV 1990 Oberrad"]
[8797,null,"Meissner","Hans-Joachim","Herren","BSV Oberrad","BSV 1990 Oberrad"]
[15081,27910,"Scheuermann","Ludwig","Sen A","BSV Oberrad","BSV 1990 Oberrad"]
[15083,27909,"Scheuermann","Sybille","Damen","BSV Oberrad","BSV 1990 Oberrad"]
[15138,39666,"Scholz","Erhard","Sen B","BSV Oberrad","BSV 1990 Oberrad"]
[15161,39669,"Schulz","Markus","Herren","BSV Oberrad","BSV 1990 Oberrad"]
[15220,66960,"Stapf","Thorsten","Herren","BSV Oberrad","BSV 1990 Oberrad"]
[15380,39681,"Willems","Jan","Herren","BSV Oberrad","BSV 1990 Oberrad"]
[15811,51235,"Zander","Michael","Herren","BSV Oberrad","BSV 1990 Oberrad"]
[8363,27351,"Gadebusch","Astri-Siri","Sen A","BC Power Girls","BSV Kassel"]
[15862,null,"Mohr","Christina","Damen","BC Power Girls","BSV Kassel"]
[15863,51498,"Persch","Martina","Damen","BC Power Girls","BSV Kassel"]
[15660,null,"Rehbein","Nicole","Damen","BC Power Girls","BSV Kassel"]
[15933,67524,"Agerbo","Jesper","Herren","Finale Kassel","BSV Kassel"]
[15988,106693,"Bierschenk","Eberhard","Sen C","Finale Kassel","BSV Kassel"]
[8183,107078,"Canady","David","Herren","Finale Kassel","BSV Kassel"]
[8196,51890,"Collmann","Dieter","Sen B","Finale Kassel","BSV Kassel"]
[26048,null,"Deller","Manuel","Herren","Finale Kassel","BSV Kassel"]
[15955,100432,"Hanke","Jürgen","Sen B","Finale Kassel","BSV Kassel"]
[15767,51167,"Herzog","Thomas","Herren","Finale Kassel","BSV Kassel"]
[15602,null,"Hilgenberg","Björn","Herren","Finale Kassel","BSV Kassel"]
[8570,89170,"Hübner","Rolf","Sen B","Finale Kassel","BSV Kassel"]
[15705,27815,"Hübner","Dennis","Herren","Finale Kassel","BSV Kassel"]
[8619,100433,"Kallup","Werner","Sen C","Finale Kassel","BSV Kassel"]
[15494,null,"Kessler","Benjamin","Herren","Finale Kassel","BSV Kassel"]
[18802,24988,"Konieczny","Bodo","Herren","Finale Kassel","BSV Kassel"]
[15710,39246,"Krnjic","Goran","Herren","Finale Kassel","BSV Kassel"]
[8750,null,"Lischka","Klaus-Uwe","Sen A","Finale Kassel","BSV Kassel"]
[8764,null,"Luoto","Mika","Herren","Finale Kassel","BSV Kassel"]
[15876,51275,"Mand","Lothar","Sen A","Finale Kassel","BSV Kassel"]
[15613,441,"Moor","Paul","Herren","Finale Kassel","BSV Kassel"]
[24826,109106,"Morig","Oliver","Herren","Finale Kassel","BSV Kassel"]
[12494,null,"Obst","Sascha","Jun","Finale Kassel","BSV Kassel"]
[15614,442,"Palermaa","Osku","Herren","Finale Kassel","BSV Kassel"]
[33073,107011,"Pape","Daniel","Herren","Finale Kassel","BSV Kassel"]
[8930,106739,"Pelz","Jürgen","Sen B","Finale Kassel","BSV Kassel"]
[8973,40035,"Racpan","Christian","Herren","Finale Kassel","BSV Kassel"]
[32042,41941,"Rischer","Marco","Herren","Finale Kassel","BSV Kassel"]
[1051,39445,"Schröder","Timo","Herren","Finale Kassel","BSV Kassel"]
[15186,89171,"Senf","Peter","Sen B","Finale Kassel","BSV Kassel"]
[25587,79779,"Teece","Richard","Herren","Finale Kassel","BSV Kassel"]
[15302,null,"Tscharke","Uwe","Sen A","Finale Kassel","BSV Kassel"]
[18800,67243,"Völkel","Dirk","Herren","Finale Kassel","BSV Kassel"]
[15781,null,"Wells","John","Jun","Finale Kassel","BSV Kassel"]
[26157,40294,"Winternheimer","Pascal","Herren","Finale Kassel","BSV Kassel"]
[8212,null,"Daute","Wolfgang","Herren","BC Langen 83","BSV Langen 83"]
[8228,106667,"Devine","David","Sen B","BC Langen 83","BSV Langen 83"]
[8243,106661,"Dietrich","Dieter","Sen B","BC Langen 83","BSV Langen 83"]
[8244,null,"Dietrich","Timo","Jun","BC Langen 83","BSV Langen 83"]
[8284,null,"Farmer","Francis","Sen A","BC Langen 83","BSV Langen 83"]
[15889,52085,"Finn","Marco","Herren","BC Langen 83","BSV Langen 83"]
[8315,100460,"Fischer","Peter","Sen A","BC Langen 83","BSV Langen 83"]
[8436,null,"Gültling","Reiner","Sen A","BC Langen 83","BSV Langen 83"]
[8484,39282,"Heindl","Manfred","Sen C","BC Langen 83","BSV Langen 83"]
[15771,39541,"Heininger","Jörg","Sen A","BC Langen 83","BSV Langen 83"]
[8523,100461,"Herrmann","Karl-Heinz","Sen C","BC Langen 83","BSV Langen 83"]
[8643,66958,"Kimbell","Irmtraut","Sen B","BC Langen 83","BSV Langen 83"]
[15792,51130,"Kimbell","Michael","Herren","BC Langen 83","BSV Langen 83"]
[8211,null,"Meegdes","Silvia","Damen","BC Langen 83","BSV Langen 83"]
[15606,null,"Meegdes","Marcel","Herren","BC Langen 83","BSV Langen 83"]
[8875,27807,"Neiczer","Ladislaus","Sen A","BC Langen 83","BSV Langen 83"]
[8876,null,"Neiczer","Markus","Herren","BC Langen 83","BSV Langen 83"]
[15064,51533,"Schäfer","Jürgen","Sen B","BC Langen 83","BSV Langen 83"]
[15099,100462,"Schley","Gisela","Sen B","BC Langen 83","BSV Langen 83"]
[15100,51534,"Schley","Hans-Joachim","Sen B","BC Langen 83","BSV Langen 83"]
[15888,67149,"Wolf","Heike","Damen","BC Langen 83","BSV Langen 83"]
[33084,107072,"Zentgraf","Roland","Herren","BC Langen 83","BSV Langen 83"]
[8174,null,"Büttner","Gabriele","Sen A","BC Nord West Ffm","BSV Nord West Frankfurt"]
[8175,106652,"Büttner","Stefan","Sen A","BC Nord West Ffm","BSV Nord West Frankfurt"]
[8900,106651,"Obst","Mike","Sen A","BC Nord West Ffm","BSV Nord West Frankfurt"]
[8901,106650,"Obst","Roland","Sen B","BC Nord West Ffm","BSV Nord West Frankfurt"]
[8904,106653,"Olbrich","Manfred","Herren","BC Nord West Ffm","BSV Nord West Frankfurt"]
[15892,67428,"Olbrich","Bernd","Sen A","BC Nord West Ffm","BSV Nord West Frankfurt"]
[15035,null,"Röske","Dietmar","Sen B","BC Nord West Ffm","BSV Nord West Frankfurt"]
[15241,null,"Stöhr","Anton","Sen B","BC Nord West Ffm","BSV Nord West Frankfurt"]
[15242,null,"Stöhr","Ulrike","Sen A","BC Nord West Ffm","BSV Nord West Frankfurt"]
[15286,null,"Tippmann","Gabriele","Sen A","BC Nord West Ffm","BSV Nord West Frankfurt"]
[15287,106649,"Tippmann","Harry","Sen C","BC Nord West Ffm","BSV Nord West Frankfurt"]
[15305,100689,"Uhlig","Donald","Sen B","BC Nord West Ffm","BSV Nord West Frankfurt"]
[15383,null,"Winter","Franz","Sen A","BC Nord West Ffm","BSV Nord West Frankfurt"]
[15530,140,"Arold","Daniel","Herren","BV 1987 Frankfurt","BV 1987 Frankfurt"]
[8046,106332,"Barth","Marcel","Herren","BV 1987 Frankfurt","BV 1987 Frankfurt"]
[8220,106334,"Dengs","Heinz","Sen A","BV 1987 Frankfurt","BV 1987 Frankfurt"]
[8252,null,"Doering","Wolfgang","Sen C","BV 1987 Frankfurt","BV 1987 Frankfurt"]
[15675,27440,"Doffin","Wolfgang","Sen B","BV 1987 Frankfurt","BV 1987 Frankfurt"]
[33061,106989,"Doffin","Rebecca","Jun","BV 1987 Frankfurt","BV 1987 Frankfurt"]
[33044,106960,"Firnschild","Dirk","Herren","BV 1987 Frankfurt","BV 1987 Frankfurt"]
[15774,39439,"Franz","Thomas","Herren","BV 1987 Frankfurt","BV 1987 Frankfurt"]
[15571,282,"Görlich","Benjamin","Herren","BV 1987 Frankfurt","BV 1987 Frankfurt"]
[8426,null,"Gröger","Andrè","Herren","BV 1987 Frankfurt","BV 1987 Frankfurt"]
[15527,null,"Grunenberg","Anja","Damen","BV 1987 Frankfurt","BV 1987 Frankfurt"]
[15528,null,"Grunenberg","Sven","Herren","BV 1987 Frankfurt","BV 1987 Frankfurt"]
[15803,51192,"Haase","Reiner","Sen B","BV 1987 Frankfurt","BV 1987 Frankfurt"]
[15748,40068,"Haibach","Hans Jürgen","Sen C","BV 1987 Frankfurt","BV 1987 Frankfurt"]
[10059,40026,"Hoffmann","Heinz-Thomas","Herren","BV 1987 Frankfurt","BV 1987 Frankfurt"]
[15869,null,"Jennrich","Benjamin","Herren","BV 1987 Frankfurt","BV 1987 Frankfurt"]
[15570,283,"Kärmer","Björn","Herren","BV 1987 Frankfurt","BV 1987 Frankfurt"]
[8708,106334,"Küchler","Jürgen","Sen A","BV 1987 Frankfurt","BV 1987 Frankfurt"]
[8769,106335,"Mader","Gabi","Sen A","BV 1987 Frankfurt","BV 1987 Frankfurt"]
[8770,106336,"Mader","Michael","Sen A","BV 1987 Frankfurt","BV 1987 Frankfurt"]
[15859,51970,"Malow","Marco","Herren","BV 1987 Frankfurt","BV 1987 Frankfurt"]
[15674,null,"Rahner","Viktor","Herren","BV 1987 Frankfurt","BV 1987 Frankfurt"]
[15092,null,"Schinkario","Helmut","Sen B","BV 1987 Frankfurt","BV 1987 Frankfurt"]
[15094,106337,"Schinkario","Nicole","Damen","BV 1987 Frankfurt","BV 1987 Frankfurt"]
[15434,106338,"Schröder","Michaela","Sen A","BV 1987 Frankfurt","BV 1987 Frankfurt"]
[15435,106339,"Schröder","Sarah","Damen","BV 1987 Frankfurt","BV 1987 Frankfurt"]
[15577,51115,"Schröder","Philip","Jun","BV 1987 Frankfurt","BV 1987 Frankfurt"]
[15151,106988,"Schubert","Mike","Herren","BV 1987 Frankfurt","BV 1987 Frankfurt"]
[15992,107101,"Schubert","Nick","Jug A","BV 1987 Frankfurt","BV 1987 Frankfurt"]
[15257,27253,"Struth","Harald","Sen A","BV 1987 Frankfurt","BV 1987 Frankfurt"]
[15264,544,"Tardt","Axel","Sen A","BV 1987 Frankfurt","BV 1987 Frankfurt"]
[15324,99942,"Vogel","Bernd","Sen B","BV 1987 Frankfurt","BV 1987 Frankfurt"]
[15754,40056,"Vornwald","Chantal","Jun","BV 1987 Frankfurt","BV 1987 Frankfurt"]
[15390,null,"Wohlfarth","Hans-Jürgen","Herren","BV 1987 Frankfurt","BV 1987 Frankfurt"]
[8005,17452,"Adkins","Laressa","Damen","BV 77 Frankfurt","BV 77 Frankfurt"]
[8054,null,"Baur","Winfried","Sen B","BV 77 Frankfurt","BV 77 Frankfurt"]
[8064,106604,"Beckel","Martina","Sen A","BV 77 Frankfurt","BV 77 Frankfurt"]
[15169,51535,"Braunstein","Michael","Sen A","BV 77 Frankfurt","BV 77 Frankfurt"]
[8155,null,"Brötz","Heinz","Sen B","BV 77 Frankfurt","BV 77 Frankfurt"]
[8399,39338,"Filor","Alexandra","Damen","BV 77 Frankfurt","BV 77 Frankfurt"]
[8359,106606,"Fuertes","Alfonso","Sen C","BV 77 Frankfurt","BV 77 Frankfurt"]
[8360,67493,"Fuertes","Daniel","Herren","BV 77 Frankfurt","BV 77 Frankfurt"]
[8361,106605,"Fuertes","Rosemarie","Sen A","BV 77 Frankfurt","BV 77 Frankfurt"]
[1447,56701,"Gabel","Janine-Manuela","Damen","BV 77 Frankfurt","BV 77 Frankfurt"]
[14633,26106,"Geißler","Nadine","Damen","BV 77 Frankfurt","BV 77 Frankfurt"]
[8400,null,"Göbel","Dennis","Herren","BV 77 Frankfurt","BV 77 Frankfurt"]
[8403,39339,"Göbel - Janka","Michaela","Damen","BV 77 Frankfurt","BV 77 Frankfurt"]
[8486,39896,"Heine","Günter","Sen B","BV 77 Frankfurt","BV 77 Frankfurt"]
[10114,null,"Heuser","Thomas","Herren","BV 77 Frankfurt","BV 77 Frankfurt"]
[15616,null,"Hoffmann","Marc","Herren","BV 77 Frankfurt","BV 77 Frankfurt"]
[8582,null,"Ilzhöfer","Ronald","Herren","BV 77 Frankfurt","BV 77 Frankfurt"]
[15808,null,"Kiefel","Alexander","Herren","BV 77 Frankfurt","BV 77 Frankfurt"]
[8687,39895,"Kosanke","Bernd","Sen A","BV 77 Frankfurt","BV 77 Frankfurt"]
[15785,null,"Kuhweide","Stephan","Herren","BV 77 Frankfurt","BV 77 Frankfurt"]
[15617,null,"Langbein","Simon","Herren","BV 77 Frankfurt","BV 77 Frankfurt"]
[15480,null,"Lofink","Christine","Sen B","BV 77 Frankfurt","BV 77 Frankfurt"]
[8823,null,"Mirschel","Andrea","Damen","BV 77 Frankfurt","BV 77 Frankfurt"]
[8955,106607,"Poller","Armin","Sen A","BV 77 Frankfurt","BV 77 Frankfurt"]
[15596,27352,"Poller","Elke","Sen A","BV 77 Frankfurt","BV 77 Frankfurt"]
[15787,null,"Schädler","Sven","Herren","BV 77 Frankfurt","BV 77 Frankfurt"]
[15071,null,"Schaubach","Manfred","Sen C","BV 77 Frankfurt","BV 77 Frankfurt"]
[15076,null,"Schepper","Thomas","Herren","BV 77 Frankfurt","BV 77 Frankfurt"]
[15229,67545,"Steh","Sarah","Jun","BV 77 Frankfurt","BV 77 Frankfurt"]
[15284,39644,"Timter","Vanessa","Damen","BV 77 Frankfurt","BV 77 Frankfurt"]
[15766,39421,"Wiederhold","Alexander","Herren","BV 77 Frankfurt","BV 77 Frankfurt"]
[15662,27219,"Becker","Daniel","Herren","BC 75 Fortuna","BV 79 Obertshausen"]
[8283,100739,"Färber","Klaus","Sen C","BC 75 Fortuna","BV 79 Obertshausen"]
[10369,107041,"Gruchot","Dennis","Sen A","BC 75 Fortuna","BV 79 Obertshausen"]
[15744,null,"Meinhardt","Ralf","Herren","BC 75 Fortuna","BV 79 Obertshausen"]
[8871,27761,"Naujoks","Christoph","Herren","BC 75 Fortuna","BV 79 Obertshausen"]
[8872,27762,"Naujoks","Jürgen","Sen A","BC 75 Fortuna","BV 79 Obertshausen"]
[8885,40028,"Neumann","Heike","Damen","BC 75 Fortuna","BV 79 Obertshausen"]
[15074,100740,"Schendel","Jörg","Herren","BC 75 Fortuna","BV 79 Obertshausen"]
[15189,100738,"Serowy","Gerd","Sen A","BC 75 Fortuna","BV 79 Obertshausen"]
[15720,null,"Trejic","Senijad","Herren","BC 75 Fortuna","BV 79 Obertshausen"]
[15422,107065,"Zimmermann","Thorsten","Herren","BC 75 Fortuna","BV 79 Obertshausen"]
[15428,null,"Zöller","Dieter","Sen A","BC 75 Fortuna","BV 79 Obertshausen"]
[8177,null,"Caldwell","Philipp","Jug A","Phönix Frankfurt","BV 95 Phönix Frankfurt e.V."]
[8178,null,"Caldwell","Rita","Sen A","Phönix Frankfurt","BV 95 Phönix Frankfurt e.V."]
[8179,100471,"Caldwell","Thomas","Sen A","Phönix Frankfurt","BV 95 Phönix Frankfurt e.V."]
[15496,null,"Eimuth","Natascha","Jug A","Phönix Frankfurt","BV 95 Phönix Frankfurt e.V."]
[15804,51196,"Flick","Peter Uwe","Sen A","Phönix Frankfurt","BV 95 Phönix Frankfurt e.V."]
[15805,51194,"Flick","Dominik","Jun","Phönix Frankfurt","BV 95 Phönix Frankfurt e.V."]
[33092,107121,"Gallo","Adrian","Jug A","Phönix Frankfurt","BV 95 Phönix Frankfurt e.V."]
[8371,624,"Gebhardt","Carsten","Herren","Phönix Frankfurt","BV 95 Phönix Frankfurt e.V."]
[15517,100758,"Gerlach","Wolfram","Herren","Phönix Frankfurt","BV 95 Phönix Frankfurt e.V."]
[8498,89169,"Heller","Dirk","Sen A","Phönix Frankfurt","BV 95 Phönix Frankfurt e.V."]
[10243,100343,"Herbig","Frank","Herren","Phönix Frankfurt","BV 95 Phönix Frankfurt e.V."]
[2217,50452,"Jung","Benjamin","Jug A","Phönix Frankfurt","BV 95 Phönix Frankfurt e.V."]
[15484,27764,"Klein","Jan","Jun","Phönix Frankfurt","BV 95 Phönix Frankfurt e.V."]
[15498,100475,"Krüger","Jasmin","Jun","Phönix Frankfurt","BV 95 Phönix Frankfurt e.V."]
[33093,107122,"Lindenau","Tobias","Jug B","Phönix Frankfurt","BV 95 Phönix Frankfurt e.V."]
[15993,106737,"Messmer","Christopher","Herren","Phönix Frankfurt","BV 95 Phönix Frankfurt e.V."]
[15649,null,"Nater","David","Jug A","Phönix Frankfurt","BV 95 Phönix Frankfurt e.V."]
[15653,27045,"Neß","Daniel","Herren","Phönix Frankfurt","BV 95 Phönix Frankfurt e.V."]
[14076,null,"Opfer","Manfred","Herren","Phönix Frankfurt","BV 95 Phönix Frankfurt e.V."]
[26547,105225,"Palumbo","William","Herren","Phönix Frankfurt","BV 95 Phönix Frankfurt e.V."]
[4024,50031,"Rolli","Maik","Herren","Phönix Frankfurt","BV 95 Phönix Frankfurt e.V."]
[15825,51616,"Rousselange","Florian","Herren","Phönix Frankfurt","BV 95 Phönix Frankfurt e.V."]
[15932,67517,"Santini","Raffaele","Herren","Phönix Frankfurt","BV 95 Phönix Frankfurt e.V."]
[15072,null,"Schauerte","Christoph","Jun","Phönix Frankfurt","BV 95 Phönix Frankfurt e.V."]
[15755,27851,"Schlauch","Philipp","Jun","Phönix Frankfurt","BV 95 Phönix Frankfurt e.V."]
[15818,51312,"Schmidt","Domenik","Jug A","Phönix Frankfurt","BV 95 Phönix Frankfurt e.V."]
[10366,106953,"Siemonsen","Melanie","Damen","Phönix Frankfurt","BV 95 Phönix Frankfurt e.V."]
[218,3950,"Stichling","Christopher","Herren","Phönix Frankfurt","BV 95 Phönix Frankfurt e.V."]
[28123,37421,"Strauß","Enrico","Herren","Phönix Frankfurt","BV 95 Phönix Frankfurt e.V."]
[26406,50029,"Thun","Michael","Herren","Phönix Frankfurt","BV 95 Phönix Frankfurt e.V."]
[26489,83130,"Thun","Sven","Jun","Phönix Frankfurt","BV 95 Phönix Frankfurt e.V."]
[15335,null,"Walter","Benedikt","Jug A","Phönix Frankfurt","BV 95 Phönix Frankfurt e.V."]
[15336,964,"Walter","Christopher","Herren","Phönix Frankfurt","BV 95 Phönix Frankfurt e.V."]
[15411,null,"Zabelt","Rene","Herren","Phönix Frankfurt","BV 95 Phönix Frankfurt e.V."]
[15431,1038,"Zuhl","Markus","Herren","Phönix Frankfurt","BV 95 Phönix Frankfurt e.V."]
[15909,67274,"Zuhl","Maximilian","Jug A","Phönix Frankfurt","BV 95 Phönix Frankfurt e.V."]
[8032,67409,"Aust","Karsten","Herren","BC Blau-Gelb Frankfurt","BV Blau-Gelb Frankfurt e.V."]
[8034,27752,"Auth","Corinna","Damen","BC Blau-Gelb Frankfurt","BV Blau-Gelb Frankfurt e.V."]
[8035,89408,"Auth","Ralf","Herren","BC Blau-Gelb Frankfurt","BV Blau-Gelb Frankfurt e.V."]
[15991,106704,"Bauer","Dominik","Herren","BC Blau-Gelb Frankfurt","BV Blau-Gelb Frankfurt e.V."]
[8095,671,"Bienert","Petra","Sen B","BC Blau-Gelb Frankfurt","BV Blau-Gelb Frankfurt e.V."]
[15969,100679,"Duske","Dennis","Herren","BC Blau-Gelb Frankfurt","BV Blau-Gelb Frankfurt e.V."]
[8307,677,"Firmbach","Volker","Sen C","BC Blau-Gelb Frankfurt","BV Blau-Gelb Frankfurt e.V."]
[8330,672,"Förster","Carola","Sen A","BC Blau-Gelb Frankfurt","BV Blau-Gelb Frankfurt e.V."]
[8336,673,"Förster","Heinz","Sen B","BC Blau-Gelb Frankfurt","BV Blau-Gelb Frankfurt e.V."]
[13056,52081,"Gladigau","Philipp","Herren","BC Blau-Gelb Frankfurt","BV Blau-Gelb Frankfurt e.V."]
[15813,51304,"Hakin","Fabio","Jun","BC Blau-Gelb Frankfurt","BV Blau-Gelb Frankfurt e.V."]
[8485,100371,"Heine","Frank","Herren","BC Blau-Gelb Frankfurt","BV Blau-Gelb Frankfurt e.V."]
[8487,106595,"Heine","Klaudija","Damen","BC Blau-Gelb Frankfurt","BV Blau-Gelb Frankfurt e.V."]
[8515,27033,"Hensel","Bernd","Sen A","BC Blau-Gelb Frankfurt","BV Blau-Gelb Frankfurt e.V."]
[15810,51233,"Heuckeroth","Anna","Jun","BC Blau-Gelb Frankfurt","BV Blau-Gelb Frankfurt e.V."]
[8571,106556,"Hüllenhütter","Wolfgang","Sen A","BC Blau-Gelb Frankfurt","BV Blau-Gelb Frankfurt e.V."]
[8584,675,"Jackwerth","Klaus","Sen B","BC Blau-Gelb Frankfurt","BV Blau-Gelb Frankfurt e.V."]
[15453,null,"Jürgens","Elisabeth","Sen B","BC Blau-Gelb Frankfurt","BV Blau-Gelb Frankfurt e.V."]
[8663,676,"Knischewski","Petra","Sen B","BC Blau-Gelb Frankfurt","BV Blau-Gelb Frankfurt e.V."]
[8682,678,"König","Uta","Damen","BC Blau-Gelb Frankfurt","BV Blau-Gelb Frankfurt e.V."]
[33039,106941,"Krug","Claudia","Damen","BC Blau-Gelb Frankfurt","BV Blau-Gelb Frankfurt e.V."]
[15944,89253,"Kuhn","Dagmar","Sen A","BC Blau-Gelb Frankfurt","BV Blau-Gelb Frankfurt e.V."]
[8709,679,"Kühn","Anita","Sen B","BC Blau-Gelb Frankfurt","BV Blau-Gelb Frankfurt e.V."]
[15918,67387,"Lamprecht","Angelika","Sen A","BC Blau-Gelb Frankfurt","BV Blau-Gelb Frankfurt e.V."]
[8771,543,"Mader","Sven","Herren","BC Blau-Gelb Frankfurt","BV Blau-Gelb Frankfurt e.V."]
[8860,51494,"Müller","Susi","Sen A","BC Blau-Gelb Frankfurt","BV Blau-Gelb Frankfurt e.V."]
[15636,27376,"Müller","Lisa","Damen","BC Blau-Gelb Frankfurt","BV Blau-Gelb Frankfurt e.V."]
[8660,27766,"Muth","Andrea","Damen","BC Blau-Gelb Frankfurt","BV Blau-Gelb Frankfurt e.V."]
[8867,681,"Muth","Michael","Sen A","BC Blau-Gelb Frankfurt","BV Blau-Gelb Frankfurt e.V."]
[8873,682,"Naumann","Edith","Sen B","BC Blau-Gelb Frankfurt","BV Blau-Gelb Frankfurt e.V."]
[8874,683,"Naumann","Hans-Jürgen","Sen B","BC Blau-Gelb Frankfurt","BV Blau-Gelb Frankfurt e.V."]
[8896,684,"Norz","Norbert","Sen B","BC Blau-Gelb Frankfurt","BV Blau-Gelb Frankfurt e.V."]
[8916,685,"Ott","Andreas","Herren","BC Blau-Gelb Frankfurt","BV Blau-Gelb Frankfurt e.V."]
[8944,686,"Pfaff","Tom","Herren","BC Blau-Gelb Frankfurt","BV Blau-Gelb Frankfurt e.V."]
[15769,39409,"Pohl","Kanittha","Damen","BC Blau-Gelb Frankfurt","BV Blau-Gelb Frankfurt e.V."]
[15005,698,"Reitze","Klaus","Sen A","BC Blau-Gelb Frankfurt","BV Blau-Gelb Frankfurt e.V."]
[15543,227,"Rifinius","Irina","Damen","BC Blau-Gelb Frankfurt","BV Blau-Gelb Frankfurt e.V."]
[15020,27034,"Robison","Dale","Sen A","BC Blau-Gelb Frankfurt","BV Blau-Gelb Frankfurt e.V."]
[15925,67459,"Roloff","Patrick","Herren","BC Blau-Gelb Frankfurt","BV Blau-Gelb Frankfurt e.V."]
[15040,699,"Roy","Christopher","Herren","BC Blau-Gelb Frankfurt","BV Blau-Gelb Frankfurt e.V."]
[15677,null,"Roy","Jessica","Damen","BC Blau-Gelb Frankfurt","BV Blau-Gelb Frankfurt e.V."]
[15112,700,"Schmidt","Petra","Damen","BC Blau-Gelb Frankfurt","BV Blau-Gelb Frankfurt e.V."]
[15149,701,"Schröter","Helge","Herren","BC Blau-Gelb Frankfurt","BV Blau-Gelb Frankfurt e.V."]
[15166,702,"Schwab","Christiane","Damen","BC Blau-Gelb Frankfurt","BV Blau-Gelb Frankfurt e.V."]
[15168,703,"Schwäch","Stefan","Herren","BC Blau-Gelb Frankfurt","BV Blau-Gelb Frankfurt e.V."]
[15170,39917,"Schwarz","Wolfgang","Sen A","BC Blau-Gelb Frankfurt","BV Blau-Gelb Frankfurt e.V."]
[15190,919,"Sherman","Edward","Sen B","BC Blau-Gelb Frankfurt","BV Blau-Gelb Frankfurt e.V."]
[15239,704,"Steul","Karl-Heinz","Sen C","BC Blau-Gelb Frankfurt","BV Blau-Gelb Frankfurt e.V."]
[8785,40131,"Weitzel","Cornelia","Damen","BC Blau-Gelb Frankfurt","BV Blau-Gelb Frankfurt e.V."]
[15361,707,"Weitzel","Matthias","Herren","BC Blau-Gelb Frankfurt","BV Blau-Gelb Frankfurt e.V."]
[15392,708,"Wolf","Lucia","Sen B","BC Blau-Gelb Frankfurt","BV Blau-Gelb Frankfurt e.V."]
[15963,89392,"Wolf","Klaudia","Sen A","BC Blau-Gelb Frankfurt","BV Blau-Gelb Frankfurt e.V."]
[15408,709,"Yowell","Vernon","Sen C","BC Blau-Gelb Frankfurt","BV Blau-Gelb Frankfurt e.V."]
[8055,39641,"Bayer","Harry","Sen B","I-Bahn SC 34 Ffm","BV City Frankfurt"]
[8057,27046,"Bayer","Peter","Sen A","I-Bahn SC 34 Ffm","BV City Frankfurt"]
[8090,529,"Bernhardt","Klaus","Herren","I-Bahn SC 34 Ffm","BV City Frankfurt"]
[8204,27602,"Curti","Michael","Herren","I-Bahn SC 34 Ffm","BV City Frankfurt"]
[8406,66853,"Goedeke","Roman","Herren","I-Bahn SC 34 Ffm","BV City Frankfurt"]
[8566,39640,"Horne","Barry","Sen C","I-Bahn SC 34 Ffm","BV City Frankfurt"]
[8669,688,"Koch","Florian","Herren","I-Bahn SC 34 Ffm","BV City Frankfurt"]
[8681,27759,"Kompauer","Sven","Jun","I-Bahn SC 34 Ffm","BV City Frankfurt"]
[8685,641,"Kopp","Erich","Sen A","I-Bahn SC 34 Ffm","BV City Frankfurt"]
[8725,51183,"Lapp","Jörg","Herren","I-Bahn SC 34 Ffm","BV City Frankfurt"]
[8754,945,"Long","James","Herren","I-Bahn SC 34 Ffm","BV City Frankfurt"]
[26403,null,"Louridas","Michael","Herren","I-Bahn SC 34 Ffm","BV City Frankfurt"]
[8969,null,"Prosch","Stefan","Jun","I-Bahn SC 34 Ffm","BV City Frankfurt"]
[8999,1050,"Reinsch","Sebastian","Jun","I-Bahn SC 34 Ffm","BV City Frankfurt"]
[15228,51610,"Steh","Sandro","Jun","I-Bahn SC 34 Ffm","BV City Frankfurt"]
[15273,548,"Then","Oliver","Herren","I-Bahn SC 34 Ffm","BV City Frankfurt"]
[15325,null,"Vogel","Stefan","Herren","I-Bahn SC 34 Ffm","BV City Frankfurt"]
[15420,39638,"Zimmermann","Hans","Sen C","I-Bahn SC 34 Ffm","BV City Frankfurt"]
[8130,51629,"Born","Frank","Herren","SBV","BV City Frankfurt"]
[8287,null,"Fauerbach","Matthias","Herren","SBV","BV City Frankfurt"]
[8452,27763,"Hahn","Stefan","Herren","SBV","BV City Frankfurt"]
[8608,51609,"Jost","Manfred","Sen A","SBV","BV City Frankfurt"]
[8726,51469,"Lapp","Peter","Herren","SBV","BV City Frankfurt"]
[8768,542,"Mader","Florian","Herren","SBV","BV City Frankfurt"]
[8798,51324,"Melching","Günter","Sen A","SBV","BV City Frankfurt"]
[8821,680,"Milnikel","Frank","Herren","SBV","BV City Frankfurt"]
[8851,null,"Müller","Hans Jürgen","Herren","SBV","BV City Frankfurt"]
[8658,null,"Nau","Marcel","Jug A","SBV","BV City Frankfurt"]
[8953,39543,"Pohl","Frantz","Sen A","SBV","BV City Frankfurt"]
[15256,51855,"Strunz","Rainer","Herren","SBV","BV City Frankfurt"]
[15676,null,"Weingärtner","Elroy","Jug B","SBV","BV City Frankfurt"]
[8143,null,"Braut","Thomas","Sen A","BV Delphi Frankfurt","BV Delphi Frankfurt e.V."]
[15739,null,"Claus","Horst","Sen A","BV Delphi Frankfurt","BV Delphi Frankfurt e.V."]
[8921,null,"Ozwirk","Heinz","Sen A","BV Delphi Frankfurt","BV Delphi Frankfurt e.V."]
[8961,null,"Pratz","Marcus","Herren","BV Delphi Frankfurt","BV Delphi Frankfurt e.V."]
[15801,51177,"Schaub","Claas","Herren","BV Delphi Frankfurt","BV Delphi Frankfurt e.V."]
[15185,null,"Seipp","Martin","Herren","BV Delphi Frankfurt","BV Delphi Frankfurt e.V."]
[15226,null,"Stegenwalner-Schwalb","Petra","Sen A","BV Delphi Frankfurt","BV Delphi Frankfurt e.V."]
[8111,27575,"Blickhan","Richard","Sen B","BV Frankfurt Süd","BV Frankfurt Süd"]
[8199,67738,"Conrad","Martin","Sen A","BV Frankfurt Süd","BV Frankfurt Süd"]
[8402,67739,"Göbel","Gisela","Sen C","BV Frankfurt Süd","BV Frankfurt Süd"]
[8744,976,"Morche","Andrea","Damen","BV Frankfurt Süd","BV Frankfurt Süd"]
[8839,67740,"Morche","Jochen","Sen A","BV Frankfurt Süd","BV Frankfurt Süd"]
[8990,461,"Regenfuss","Norbert","Sen C","BV Frankfurt Süd","BV Frankfurt Süd"]
[15070,67741,"Scharnowski","Waldemar","Herren","BV Frankfurt Süd","BV Frankfurt Süd"]
[15110,67742,"Schmidt","Michael","Sen B","BV Frankfurt Süd","BV Frankfurt Süd"]
[15157,67743,"Schultheiss","Michael","Herren","BV Frankfurt Süd","BV Frankfurt Süd"]
[33049,106970,"Vogelrieder","Josef","Sen C","BV Frankfurt Süd","BV Frankfurt Süd"]
[8024,67606,"Appel","Rolf","Sen A","BC 2005 Frankfurt","BV Frankfurt West"]
[8091,null,"Besser","Beate","Damen","BC 2005 Frankfurt","BV Frankfurt West"]
[8215,51455,"Day","Claudia","Sen A","BC 2005 Frankfurt","BV Frankfurt West"]
[8263,null,"Duki","Hildegard","Sen B","BC 2005 Frankfurt","BV Frankfurt West"]
[8326,67470,"Förster","Gerd","Sen B","BC 2005 Frankfurt","BV Frankfurt West"]
[8388,67607,"Geretshauser","Kurt","Sen B","BC 2005 Frankfurt","BV Frankfurt West"]
[15702,27787,"Laube","Michael","Herren","BC 2005 Frankfurt","BV Frankfurt West"]
[15857,51948,"Ludwig","Manuela","Damen","BC 2005 Frankfurt","BV Frankfurt West"]
[15814,51299,"Lütjeharms","Niklas","Jun","BC 2005 Frankfurt","BV Frankfurt West"]
[15815,51300,"Lütjeharms","Henrik","Jun","BC 2005 Frankfurt","BV Frankfurt West"]
[8825,67609,"Modenbach","Christian","Sen A","BC 2005 Frankfurt","BV Frankfurt West"]
[8826,67608,"Modenbach","Inge","Sen A","BC 2005 Frankfurt","BV Frankfurt West"]
[15927,67505,"Noll","Jürgen","Sen A","BC 2005 Frankfurt","BV Frankfurt West"]
[8929,null,"Peluso","Alessandro","Jun","BC 2005 Frankfurt","BV Frankfurt West"]
[8942,106895,"Petry","Inge","Sen B","BC 2005 Frankfurt","BV Frankfurt West"]
[15069,null,"Schafnitzel","Inge","Sen B","BC 2005 Frankfurt","BV Frankfurt West"]
[15999,null,"Schellhammer","Maik","Jun","BC 2005 Frankfurt","BV Frankfurt West"]
[15107,null,"Schmidt","Jutta","Sen A","BC 2005 Frankfurt","BV Frankfurt West"]
[15650,null,"Shoebottom","Mark","Jug A","BC 2005 Frankfurt","BV Frankfurt West"]
[8038,null,"Tubklay","Sununta","Damen","BC 2005 Frankfurt","BV Frankfurt West"]
[15699,27785,"Vogt","Matthias","Herren","BC 2005 Frankfurt","BV Frankfurt West"]
[14216,268,"Weber","Tassanee","Sen B","BC 2005 Frankfurt","BV Frankfurt West"]
[15367,67612,"Werner","Walter","Sen A","BC 2005 Frankfurt","BV Frankfurt West"]
[15388,67613,"Wittenborg","Eckhard","Sen C","BC 2005 Frankfurt","BV Frankfurt West"]
[15413,67614,"Zander","Annette","Sen A","BC 2005 Frankfurt","BV Frankfurt West"]
[15770,39713,"Zander","Jürgen","Sen B","BC 2005 Frankfurt","BV Frankfurt West"]
[33002,106785,"Altunok","Ümit","Herren","BC 67 Hanau","BV Hanau"]
[8117,67192,"Bodem","Andreas","Sen A","BC 67 Hanau","BV Hanau"]
[8261,51961,"Druschel","Siegfried","Sen B","BC 67 Hanau","BV Hanau"]
[8296,89107,"Ferenczi","Stephan","Herren","BC 67 Hanau","BV Hanau"]
[8297,67191,"Fernandez","Andres","Sen B","BC 67 Hanau","BV Hanau"]
[8320,null,"Fischer","Werner","Sen A","BC 67 Hanau","BV Hanau"]
[15985,106686,"Gangloff","Thomas","Herren","BC 67 Hanau","BV Hanau"]
[8454,null,"Hamburger","Fred","Sen C","BC 67 Hanau","BV Hanau"]
[15555,305,"Härtl","Rudolf","Sen A","BC 67 Hanau","BV Hanau"]
[15520,79845,"Hein","Karsten","Herren","BC 67 Hanau","BV Hanau"]
[8493,89108,"Heldner","Bruno","Sen B","BC 67 Hanau","BV Hanau"]
[8536,null,"Hidde","Jens","Sen C","BC 67 Hanau","BV Hanau"]
[6113,39343,"Kehr","Marco","Herren","BC 67 Hanau","BV Hanau"]
[15984,106687,"Keiser","Alexander","Herren","BC 67 Hanau","BV Hanau"]
[15513,null,"Kippes","Ralf","Herren","BC 67 Hanau","BV Hanau"]
[8684,89110,"Konway","Karl","Sen A","BC 67 Hanau","BV Hanau"]
[15917,67386,"Körner","Wolfgang","Sen A","BC 67 Hanau","BV Hanau"]
[10215,67486,"Mirau","Dennis","Herren","BC 67 Hanau","BV Hanau"]
[8849,89111,"Müller","Edgar","Sen A","BC 67 Hanau","BV Hanau"]
[15661,null,"Roas","Jörg","Herren","BC 67 Hanau","BV Hanau"]
[15086,89112,"Schild","Frank","Sen C","BC 67 Hanau","BV Hanau"]
[15109,89113,"Schmidt","Martin","Sen A","BC 67 Hanau","BV Hanau"]
[15860,null,"Schütz","Patrick","Herren","BC 67 Hanau","BV Hanau"]
[15206,null,"Speckmann","Armin","Sen B","BC 67 Hanau","BV Hanau"]
[10164,67338,"Szczypski","Jürgen","Herren","BC 67 Hanau","BV Hanau"]
[8156,100737,"Brückner","Achim","Sen A","BC 75 Fortuna","BV Hanau"]
[8017,51903,"Amler","Patrick","Jug A","Condor Steinheim","BV Hanau"]
[8051,107012,"Bauer","Jürgen","Sen A","Condor Steinheim","BV Hanau"]
[8056,89118,"Bayer","Julia","Damen","Condor Steinheim","BV Hanau"]
[8058,89119,"Bayer","Thomas","Herren","Condor Steinheim","BV Hanau"]
[8118,51114,"Bodem","Anja","Damen","Condor Steinheim","BV Hanau"]
[8147,89120,"Bretthauer","Ralf","Sen A","Condor Steinheim","BV Hanau"]
[8166,89122,"Buhl","Georg","Sen C","Condor Steinheim","BV Hanau"]
[8167,89121,"Buhl","Martin","Herren","Condor Steinheim","BV Hanau"]
[8184,89115,"Cano Sanchis","Rita","Sen B","Condor Steinheim","BV Hanau"]
[10026,89116,"Dreher","Stefan","Sen A","Condor Steinheim","BV Hanau"]
[8348,40058,"Friedrich","Heike","Damen","Condor Steinheim","BV Hanau"]
[8349,51622,"Friedrich","Michael","Sen A","Condor Steinheim","BV Hanau"]
[33045,106958,"Fülling","Florian","Herren","Condor Steinheim","BV Hanau"]
[8398,89117,"Göb","Patrick","Herren","Condor Steinheim","BV Hanau"]
[33098,107146,"Grünheid","Malte","Herren","Condor Steinheim","BV Hanau"]
[8661,89123,"Kleppig","Constanze","Sen A","Condor Steinheim","BV Hanau"]
[10261,132408,"Klüh","Heidi","Sen A","Condor Steinheim","BV Hanau"]
[33003,106784,"Koths","Katrin","Damen","Condor Steinheim","BV Hanau"]
[8892,89124,"Niemand","Wolfgang","Sen B","Condor Steinheim","BV Hanau"]
[8927,109627,"Pauli","Sven","Herren","Condor Steinheim","BV Hanau"]
[33076,107030,"Polyannis","Athanasios","Herren","Condor Steinheim","BV Hanau"]
[33099,107145,"Roß","Nicole","Jun","Condor Steinheim","BV Hanau"]
[15097,89127,"Schlappa","Norbert","Sen B","Condor Steinheim","BV Hanau"]
[15098,89126,"Schlappa","Wolfgang","Herren","Condor Steinheim","BV Hanau"]
[15732,39320,"Schlappa","Martin","Herren","Condor Steinheim","BV Hanau"]
[8751,949,"Schmidt","Melanie","Damen","Condor Steinheim","BV Hanau"]
[15123,67193,"Schmidt","Thomas","Herren","Condor Steinheim","BV Hanau"]
[15433,null,"Schottling","Andreas","Herren","Condor Steinheim","BV Hanau"]
[9201,107110,"Schünzel","Ralph","Sen A","Condor Steinheim","BV Hanau"]
[15203,89130,"Sommer","Walter","Sen B","Condor Steinheim","BV Hanau"]
[15328,89129,"Vornwald","Beatriz","Damen","Condor Steinheim","BV Hanau"]
[15641,950,"Vornwald","Knut","Herren","Condor Steinheim","BV Hanau"]
[15789,null,"Vornwald","Nils","Herren","Condor Steinheim","BV Hanau"]
[15418,52074,"Ziebach","Mirko","Jug A","Condor Steinheim","BV Hanau"]
[15756,null,"Becker","Patrick","Jug B","Jugend Bowling Club Hanau","BV Hanau"]
[8043,null,"Bartaska","Jonas","Sen B","TSV 1860 Hanau","BV Hanau"]
[8092,89089,"Betz","Renate","Sen A","TSV 1860 Hanau","BV Hanau"]
[8119,89090,"Bodis","Karin","Sen B","TSV 1860 Hanau","BV Hanau"]
[8480,89091,"Heilmann","Harry","Sen A","TSV 1860 Hanau","BV Hanau"]
[8481,89092,"Heilmann","Inge","Sen A","TSV 1860 Hanau","BV Hanau"]
[15861,51956,"Herbert","Peter","Sen A","TSV 1860 Hanau","BV Hanau"]
[15895,66959,"Herbert","Claudia","Sen A","TSV 1860 Hanau","BV Hanau"]
[8606,27047,"Jokisch","Matthias","Herren","TSV 1860 Hanau","BV Hanau"]
[8662,89094,"Klier","Reinhard","Sen B","TSV 1860 Hanau","BV Hanau"]
[33108,132420,"Kmiecik","Marius","Herren","TSV 1860 Hanau","BV Hanau"]
[8697,89095,"Kraus","Monika","Sen B","TSV 1860 Hanau","BV Hanau"]
[15463,89096,"Kretschmer","Karsten","Herren","TSV 1860 Hanau","BV Hanau"]
[15461,89098,"Krüger","Petra","Sen A","TSV 1860 Hanau","BV Hanau"]
[15462,100474,"Krüger","Michael","Sen A","TSV 1860 Hanau","BV Hanau"]
[8808,27300,"Kuchenbrod","Frank","Sen A","TSV 1860 Hanau","BV Hanau"]
[8810,27298,"Kuchenbrod","Gabriele","Sen A","TSV 1860 Hanau","BV Hanau"]
[8790,88703,"Mautz","Robert","Sen B","TSV 1860 Hanau","BV Hanau"]
[33109,132419,"Mayer","Ursula","Sen B","TSV 1860 Hanau","BV Hanau"]
[8791,null,"Mayer","Melanie","Damen","TSV 1860 Hanau","BV Hanau"]
[15712,27850,"Model","Ralf","Sen B","TSV 1860 Hanau","BV Hanau"]
[8836,89099,"Morbe","Manfred","Sen C","TSV 1860 Hanau","BV Hanau"]
[8837,null,"Morbe","Sandra","Damen","TSV 1860 Hanau","BV Hanau"]
[8838,89100,"Morbe","Sieglinde","Sen B","TSV 1860 Hanau","BV Hanau"]
[8889,89101,"Nickusch","Michael","Sen B","TSV 1860 Hanau","BV Hanau"]
[8986,51902,"Rauthe","Alexander","Jun","TSV 1860 Hanau","BV Hanau"]
[33071,107000,"Ries","Tobias","Jun","TSV 1860 Hanau","BV Hanau"]
[15052,89132,"Sabo","Ivan","Sen A","TSV 1860 Hanau","BV Hanau"]
[10178,107001,"Scheibe","Thomas","Herren","TSV 1860 Hanau","BV Hanau"]
[15126,106587,"Schnee","Florian","Jun","TSV 1860 Hanau","BV Hanau"]
[8482,89093,"Schott","Ivonne","Damen","TSV 1860 Hanau","BV Hanau"]
[15841,51901,"Schott","Michael","Herren","TSV 1860 Hanau","BV Hanau"]
[15187,89103,"Senkbeil","Gerhard","Sen C","TSV 1860 Hanau","BV Hanau"]
[33104,132414,"Smith","Wyatt","Herren","TSV 1860 Hanau","BV Hanau"]
[15215,67272,"Staab","Manfred","Sen A","TSV 1860 Hanau","BV Hanau"]
[15238,89114,"Stephan","Peter","Sen A","TSV 1860 Hanau","BV Hanau"]
[15842,51900,"Stephan","Timm","Herren","TSV 1860 Hanau","BV Hanau"]
[15669,27367,"Theis-Franke","Jörg","Sen A","TSV 1860 Hanau","BV Hanau"]
[15341,null,"Warner","Kai","Herren","TSV 1860 Hanau","BV Hanau"]
[15362,89104,"Wendler","Manuela","Damen","TSV 1860 Hanau","BV Hanau"]
[15363,89105,"Wendler","Stefan","Sen A","TSV 1860 Hanau","BV Hanau"]
[15365,89106,"Wenzel","Uwe","Herren","TSV 1860 Hanau","BV Hanau"]
[8060,null,"Becht","Franz","Sen C","BC Höchst","BV Höchst e.V."]
[8150,null,"Breuers","Edda","Sen C","BC Höchst","BV Höchst e.V."]
[8305,null,"Fink","Ulrike","Sen B","BC Höchst","BV Höchst e.V."]
[8310,67600,"Fischer","Alfred","Sen C","BC Höchst","BV Höchst e.V."]
[8312,null,"Fischer","Ingeborg","Sen A","BC Höchst","BV Höchst e.V."]
[15578,242,"Fischer","Oliver","Herren","BC Höchst","BV Höchst e.V."]
[8323,66979,"Flassig","Roland","Sen A","BC Höchst","BV Höchst e.V."]
[8416,null,"Grechenig","Bianca","Jun","BC Höchst","BV Höchst e.V."]
[15475,67601,"Hentschel","Klaus Dieter","Sen C","BC Höchst","BV Höchst e.V."]
[8609,null,"Jost","Werner","Sen C","BC Höchst","BV Höchst e.V."]
[8674,67602,"Köhler","Andreas","Sen A","BC Höchst","BV Höchst e.V."]
[15629,null,"Nurmann","Jens","Herren","BC Höchst","BV Höchst e.V."]
[15476,88811,"Rösler","Bernd","Sen A","BC Höchst","BV Höchst e.V."]
[15132,67603,"Schneider","Karl-Heinz","Sen C","BC Höchst","BV Höchst e.V."]
[15856,null,"Schneider","Steffanie","Jun","BC Höchst","BV Höchst e.V."]
[15160,88812,"Schulz","Herbert","Sen B","BC Höchst","BV Höchst e.V."]
[15163,67604,"Schulz","Wolfhard","Sen B","BC Höchst","BV Höchst e.V."]
[15579,243,"Schulz","Christian","Herren","BC Höchst","BV Höchst e.V."]
[15192,null,"Siedentopf","Hannelore","Sen C","BC Höchst","BV Höchst e.V."]
[15193,67605,"Siedentopf","Peter","Sen C","BC Höchst","BV Höchst e.V."]
[15381,null,"Willing","Helmuth","Sen B","BC Höchst","BV Höchst e.V."]
[15432,106603,"Zwirnmann","Rosi","Sen C","BC Höchst","BV Höchst e.V."]
[15714,27813,"Bartossek","Peter","Sen A","BC Mühlheim","BV Mühlheim"]
[15725,27998,"Berz","Wolfgang","Sen A","BC Mühlheim","BV Mühlheim"]
[8103,100749,"Bileci","Nunzio","Sen A","BC Mühlheim","BV Mühlheim"]
[15713,27814,"Holzwarth","Thomas","Sen A","BC Mühlheim","BV Mühlheim"]
[15877,52035,"Holzwarth","Christian","Herren","BC Mühlheim","BV Mühlheim"]
[15038,100751,"Rothenhäuser","Bernd","Sen A","BC Mühlheim","BV Mühlheim"]
[15039,100752,"Rothenhäuser","Werner","Herren","BC Mühlheim","BV Mühlheim"]
[33010,106798,"Spreng","Dominic","Jug B","BC Mühlheim","BV Mühlheim"]
[33009,106797,"Spreng","Markus","Herren","BC Mühlheim","BV Mühlheim"]
[15384,null,"Winter","Wilfried","Sen B","BC Mühlheim","BV Mühlheim"]
[8078,null,"Belgar","Irene","Jun","BC Nidda Ffm","BV Nidda Frankfurt"]
[8080,null,"Belgar","Rene","Herren","BC Nidda Ffm","BV Nidda Frankfurt"]
[8112,null,"Block","Alexander","Jun","BC Nidda Ffm","BV Nidda Frankfurt"]
[8188,null,"Castro","Ferdinand","Herren","BC Nidda Ffm","BV Nidda Frankfurt"]
[8245,null,"Dietz","Christian","Jun","BC Nidda Ffm","BV Nidda Frankfurt"]
[8258,null,"Dorfmeister","Daniel","Jun","BC Nidda Ffm","BV Nidda Frankfurt"]
[8309,null,"Fischer","Alexander","Jun","BC Nidda Ffm","BV Nidda Frankfurt"]
[8334,null,"Forster","Fred","Sen B","BC Nidda Ffm","BV Nidda Frankfurt"]
[8337,null,"Forster","Petra","Sen A","BC Nidda Ffm","BV Nidda Frankfurt"]
[8815,null,"Mielke","Melanie","Jun","BC Nidda Ffm","BV Nidda Frankfurt"]
[8869,null,"Muthig","Jasmin","Jug A","BC Nidda Ffm","BV Nidda Frankfurt"]
[8816,null,"Thieme","Sigrid","Sen B","BC Nidda Ffm","BV Nidda Frankfurt"]
[15966,100650,"Boeske","Christian","Herren","BC Devils","BV Oberstedtener Devils e.V."]
[15745,null,"Brandtscheidt","Steven","Jun","BC Devils","BV Oberstedtener Devils e.V."]
[8223,51410,"Deppisch","Günter","Sen C","BC Devils","BV Oberstedtener Devils e.V."]
[8224,51409,"Deppisch","Sandra","Damen","BC Devils","BV Oberstedtener Devils e.V."]
[8253,39426,"Döll","Angela","Sen A","BC Devils","BV Oberstedtener Devils e.V."]
[15439,39425,"Döll","Andreas","Sen B","BC Devils","BV Oberstedtener Devils e.V."]
[8255,106937,"Domesle","Christine","Damen","BC Devils","BV Oberstedtener Devils e.V."]
[15936,67572,"Domesle","Roger","Sen A","BC Devils","BV Oberstedtener Devils e.V."]
[15625,null,"Dörflinger","Justus","Herren","BC Devils","BV Oberstedtener Devils e.V."]
[15763,null,"Eisenberg","Christina","Damen","BC Devils","BV Oberstedtener Devils e.V."]
[8340,39427,"Frank","Sabine","Sen A","BC Devils","BV Oberstedtener Devils e.V."]
[15957,100486,"Gittel","Andreas","Sen A","BC Devils","BV Oberstedtener Devils e.V."]
[15610,893,"Glaßmann","Regina","Damen","BC Devils","BV Oberstedtener Devils e.V."]
[15611,894,"Glaßmann","Wolfgang","Herren","BC Devils","BV Oberstedtener Devils e.V."]
[8397,908,"Glaum","Marina","Sen A","BC Devils","BV Oberstedtener Devils e.V."]
[15989,106699,"Glück","Andreas","Herren","BC Devils","BV Oberstedtener Devils e.V."]
[33025,106894,"Grützner","Petra","Sen B","BC Devils","BV Oberstedtener Devils e.V."]
[15609,null,"Heckmann","Matthias","Herren","BC Devils","BV Oberstedtener Devils e.V."]
[15518,40057,"Höck","Michael","Herren","BC Devils","BV Oberstedtener Devils e.V."]
[15554,285,"Höck","Laura","Jug A","BC Devils","BV Oberstedtener Devils e.V."]
[8717,891,"Lambracht","Waltraud","Sen A","BC Devils","BV Oberstedtener Devils e.V."]
[8719,890,"Lang","Christel","Damen","BC Devils","BV Oberstedtener Devils e.V."]
[8727,null,"Lassiter","Semra","Sen A","BC Devils","BV Oberstedtener Devils e.V."]
[15764,null,"Löschnig","Stephan","Herren","BC Devils","BV Oberstedtener Devils e.V."]
[15822,null,"Mansmann","Harald","Herren","BC Devils","BV Oberstedtener Devils e.V."]
[15924,67413,"Mc Allen","Manuel","Herren","BC Devils","BV Oberstedtener Devils e.V."]
[8832,40085,"Möller","Beate","Sen B","BC Devils","BV Oberstedtener Devils e.V."]
[15809,51234,"Nater","Celia","Damen","BC Devils","BV Oberstedtener Devils e.V."]
[15019,null,"Roberts","Maurice","Sen A","BC Devils","BV Oberstedtener Devils e.V."]
[15140,906,"Schomaker","Ralf-Thomas","Sen A","BC Devils","BV Oberstedtener Devils e.V."]
[15828,null,"Seifert","Kathrin","Damen","BC Devils","BV Oberstedtener Devils e.V."]
[15293,909,"Trebbien","Uwe","Sen A","BC Devils","BV Oberstedtener Devils e.V."]
[15346,907,"Weber","Carla","Sen C","BC Devils","BV Oberstedtener Devils e.V."]
[15752,null,"Wiacek","Nadine","Damen","BC Devils","BV Oberstedtener Devils e.V."]
[15765,null,"Wiacek","Christopher","Herren","BC Devils","BV Oberstedtener Devils e.V."]
[33034,106936,"Wolf","Matthias","Sen A","BC Devils","BV Oberstedtener Devils e.V."]
[8093,100533,"Bien","Martin","Sen B","BV Oranje Frankfurt","BV Oranje Frankfurt"]
[8366,100534,"Gangi-Chiodo","Francesco","Sen A","BV Oranje Frankfurt","BV Oranje Frankfurt"]
[15750,40030,"Klein","Peter-Jürgen","Sen C","BV Oranje Frankfurt","BV Oranje Frankfurt"]
[8690,100535,"Kostial","Hans-Joachim","Sen B","BV Oranje Frankfurt","BV Oranje Frankfurt"]
[8967,100536,"Primbs","Paul","Sen C","BV Oranje Frankfurt","BV Oranje Frankfurt"]
[8993,100537,"Reichert","Klaus","Sen C","BV Oranje Frankfurt","BV Oranje Frankfurt"]
[15172,null,"Schweitzer","Jürgen","Herren","BV Oranje Frankfurt","BV Oranje Frankfurt"]
[15263,100538,"Tappert","Jörg","Sen B","BV Oranje Frankfurt","BV Oranje Frankfurt"]
[15282,100539,"Thurk","Rolf","Sen C","BV Oranje Frankfurt","BV Oranje Frankfurt"]
[15884,52089,"Almeida","Vitor","Herren","BC Rebstock Ffm","BV Rebstock"]
[8026,100813,"Armbrüster","Alfred","Sen B","BC Rebstock Ffm","BV Rebstock"]
[8081,67599,"Bellanti","Vincenzo","Herren","BC Rebstock Ffm","BV Rebstock"]
[8097,39534,"Biersack","Karl","Sen A","BC Rebstock Ffm","BV Rebstock"]
[8124,27276,"Böhne","Thomas","Herren","BC Rebstock Ffm","BV Rebstock"]
[8168,100814,"Burger","Kurt","Sen A","BC Rebstock Ffm","BV Rebstock"]
[8198,100452,"Comunale","Antonio","Sen C","BC Rebstock Ffm","BV Rebstock"]
[8324,100711,"Flemming","Claus-Dieter","Sen C","BC Rebstock Ffm","BV Rebstock"]
[33022,106854,"Hartsch","David","Herren","BC Rebstock Ffm","BV Rebstock"]
[15893,66840,"Herzberger","Björn","Herren","BC Rebstock Ffm","BV Rebstock"]
[8667,100816,"Koch","Andreas","Sen A","BC Rebstock Ffm","BV Rebstock"]
[15915,67384,"Kostial","Daniel","Herren","BC Rebstock Ffm","BV Rebstock"]
[8712,100816,"Kumpf","Jürgen","Sen B","BC Rebstock Ffm","BV Rebstock"]
[8865,88813,"Munske","Rolf","Sen A","BC Rebstock Ffm","BV Rebstock"]
[8933,100817,"Penkwitz","Axel","Sen A","BC Rebstock Ffm","BV Rebstock"]
[15880,52059,"Ress","Andreas","Sen A","BC Rebstock Ffm","BV Rebstock"]
[15866,51920,"Stasik","Mike","Herren","BC Rebstock Ffm","BV Rebstock"]
[15274,39223,"Thierfelder","Andreas","Sen A","BC Rebstock Ffm","BV Rebstock"]
[15396,39916,"Wolff","Gerhard","Sen C","BC Rebstock Ffm","BV Rebstock"]
[15495,null,"Becke","Jens","Herren","BV Römer Frankfurt","BV Römer Frankfurt"]
[15777,null,"Böff","Ralf","Sen A","BV Römer Frankfurt","BV Römer Frankfurt"]
[15843,null,"Bogdoll","Pascal","Jun","BV Römer Frankfurt","BV Römer Frankfurt"]
[8172,67422,"Buse","Susanne","Damen","BV Römer Frankfurt","BV Römer Frankfurt"]
[15574,308,"Decristan","Angelika","Sen A","BV Römer Frankfurt","BV Römer Frankfurt"]
[15939,89131,"Dinsenbacher","Marco","Herren","BV Römer Frankfurt","BV Römer Frankfurt"]
[8321,39771,"Fischer","Yvonne","Damen","BV Römer Frankfurt","BV Römer Frankfurt"]
[15778,null,"Fischer","Sylvia","Damen","BV Römer Frankfurt","BV Römer Frankfurt"]
[15832,null,"Fischer","Heike","Damen","BV Römer Frankfurt","BV Römer Frankfurt"]
[15759,40134,"Geibel","Markus","Herren","BV Römer Frankfurt","BV Römer Frankfurt"]
[15872,null,"Göbel","Thomas","Herren","BV Römer Frankfurt","BV Römer Frankfurt"]
[15668,null,"Gödde","Birgit","Damen","BV Römer Frankfurt","BV Römer Frankfurt"]
[8460,88623,"Haring","Helga","Sen B","BV Römer Frankfurt","BV Römer Frankfurt"]
[8461,100776,"Haring","Klaus","Sen A","BV Römer Frankfurt","BV Römer Frankfurt"]
[8471,100029,"Heck-Seipel","Lydia","Sen B","BV Römer Frankfurt","BV Römer Frankfurt"]
[15868,89462,"Heuckeroth","Ursula","Sen B","BV Römer Frankfurt","BV Römer Frankfurt"]
[15779,null,"Huste","Alexander","Herren","BV Römer Frankfurt","BV Römer Frankfurt"]
[8596,88624,"Jannusch","Ingo","Herren","BV Römer Frankfurt","BV Römer Frankfurt"]
[18938,39952,"Körber","Martina","Damen","BV Römer Frankfurt","BV Römer Frankfurt"]
[15768,39642,"Krämer","Tobias","Jun","BV Römer Frankfurt","BV Römer Frankfurt"]
[15632,null,"Kraus","Sabine","Damen","BV Römer Frankfurt","BV Römer Frankfurt"]
[15663,27247,"Kraus","Matthias","Sen A","BV Römer Frankfurt","BV Römer Frankfurt"]
[33037,106940,"Krug","Reiner","Herren","BV Römer Frankfurt","BV Römer Frankfurt"]
[15497,100472,"Krüger","Carmen","Sen A","BV Römer Frankfurt","BV Römer Frankfurt"]
[15499,100474,"Krüger","Michael","Sen A","BV Römer Frankfurt","BV Römer Frankfurt"]
[15500,100473,"Krüger","Tamara","Damen","BV Römer Frankfurt","BV Römer Frankfurt"]
[33080,107045,"Kügler","Claudia Stephanie","Jun","BV Römer Frankfurt","BV Römer Frankfurt"]
[8729,51484,"Lassiter","Yasemin","Damen","BV Römer Frankfurt","BV Römer Frankfurt"]
[15807,51987,"May","Christine","Sen B","BV Römer Frankfurt","BV Römer Frankfurt"]
[15701,null,"Mengel","Mark","Herren","BV Römer Frankfurt","BV Römer Frankfurt"]
[8800,null,"Merkle","Herbert","Sen C","BV Römer Frankfurt","BV Römer Frankfurt"]
[15831,null,"Pacelt","Dominik","Herren","BV Römer Frankfurt","BV Römer Frankfurt"]
[15700,27786,"Pellmann","Heike","Damen","BV Römer Frankfurt","BV Römer Frankfurt"]
[8987,100494,"Rauthe","Manfred","Sen B","BV Römer Frankfurt","BV Römer Frankfurt"]
[5790,null,"Rocke","Marcel","Herren","BV Römer Frankfurt","BV Römer Frankfurt"]
[33111,132453,"Rohn","Selina","Jug B","BV Römer Frankfurt","BV Römer Frankfurt"]
[33036,106939,"Rohn","Jörg","Herren","BV Römer Frankfurt","BV Römer Frankfurt"]
[15950,100027,"Schuck","Dennis","Jun","BV Römer Frankfurt","BV Römer Frankfurt"]
[15776,null,"Schülner","Sabrina","Damen","BV Römer Frankfurt","BV Römer Frankfurt"]
[15184,100463,"Seipel","Walter","Sen B","BV Römer Frankfurt","BV Römer Frankfurt"]
[33042,106947,"Staudte","Thomas","Sen A","BV Römer Frankfurt","BV Römer Frankfurt"]
[33050,106971,"Staudte","Anita","Sen B","BV Römer Frankfurt","BV Römer Frankfurt"]
[15548,211,"Thelen","Stanley","Herren","BV Römer Frankfurt","BV Römer Frankfurt"]
[15911,67316,"Tomic","Robert","Herren","BV Römer Frankfurt","BV Römer Frankfurt"]
[15751,null,"Toussaint","Daniela","Damen","BV Römer Frankfurt","BV Römer Frankfurt"]
[15318,88625,"Verdecchia","Robert","Sen C","BV Römer Frankfurt","BV Römer Frankfurt"]
[15772,39542,"Völker","Terry","Sen B","BV Römer Frankfurt","BV Römer Frankfurt"]
[15799,51131,"Wargowski","Thomas","Sen B","BV Römer Frankfurt","BV Römer Frankfurt"]
[15225,null,"Weiler","Julian","Herren","BV Römer Frankfurt","BV Römer Frankfurt"]
[15360,null,"Weissbeck","Sven","Herren","BV Römer Frankfurt","BV Römer Frankfurt"]
[15378,67444,"Wilczek","Andreas","Sen A","BV Römer Frankfurt","BV Römer Frankfurt"]
[8233,null,"Diegelmann","Axel","Herren","BV Taifun Fulda","BV Taifun Fulda"]
[15736,null,"Dull","David","Jug A","BV Taifun Fulda","BV Taifun Fulda"]
[8711,null,"Kühne","Willy","Sen B","BV Taifun Fulda","BV Taifun Fulda"]
[15124,null,"Schmitt","Wolfgang","Herren","BV Taifun Fulda","BV Taifun Fulda"]
[10130,null,"Balz","Arthur","Sen A","City Bowler Kassel","City Bowler Kassel e.V."]
[10052,99877,"Becker","Jens","Herren","City Bowler Kassel","City Bowler Kassel e.V."]
[15853,null,"Borzych","Angelika","Sen A","City Bowler Kassel","City Bowler Kassel e.V."]
[10230,99876,"Diehle","Daniel","Herren","City Bowler Kassel","City Bowler Kassel e.V."]
[13779,66822,"Eisermann","Dirk","Herren","City Bowler Kassel","City Bowler Kassel e.V."]
[15931,66828,"Fürstenberg","Marvin","Jug B","City Bowler Kassel","City Bowler Kassel e.V."]
[15948,99878,"Köhler","Ralf","Herren","City Bowler Kassel","City Bowler Kassel e.V."]
[15968,100678,"Markus","Eugen","Herren","City Bowler Kassel","City Bowler Kassel e.V."]
[10129,null,"Maus","Joshua","Jug A","City Bowler Kassel","City Bowler Kassel e.V."]
[15987,106692,"Puder","Alexander","Herren","City Bowler Kassel","City Bowler Kassel e.V."]
[15044,null,"Rühl","Reinhard","Sen C","City Bowler Kassel","City Bowler Kassel e.V."]
[15854,null,"Saupe","Jens","Herren","City Bowler Kassel","City Bowler Kassel e.V."]
[15850,51888,"Schmidt","Stefan","Herren","City Bowler Kassel","City Bowler Kassel e.V."]
[33066,106994,"Spangenberg","Karsten","Herren","City Bowler Kassel","City Bowler Kassel e.V."]
[12734,100746,"Steinwehr","Steffen","Herren","City Bowler Kassel","City Bowler Kassel e.V."]
[15852,null,"Zambon","Adriano","Herren","City Bowler Kassel","City Bowler Kassel e.V."]
[15864,51676,"Zuhl","Tanja","Damen","City Bowler Kassel","City Bowler Kassel e.V."]
[8030,51618,"Aufschläger","Ulrike","Damen","FSV Frankfurt","FSV Frankfurt"]
[8108,88628,"Blickhan","Gaby","Sen B","FSV Frankfurt","FSV Frankfurt"]
[8110,27438,"Blickhan","Julia","Damen","FSV Frankfurt","FSV Frankfurt"]
[15158,88634,"Gutzwiller","Nicole","Damen","FSV Frankfurt","FSV Frankfurt"]
[8463,null,"Harth","Andrea","Damen","FSV Frankfurt","FSV Frankfurt"]
[8483,88629,"Heilmann","Jürgen","Sen A","FSV Frankfurt","FSV Frankfurt"]
[8524,88630,"Herrmann","Roland","Sen B","FSV Frankfurt","FSV Frankfurt"]
[8568,88631,"Hospe","Thilo","Sen A","FSV Frankfurt","FSV Frankfurt"]
[8651,51842,"Klein","Detlef","Sen C","FSV Frankfurt","FSV Frankfurt"]
[8688,null,"Koslowsky","Ralf","Herren","FSV Frankfurt","FSV Frankfurt"]
[545,1011,"Maurer","Toni","Sen C","FSV Frankfurt","FSV Frankfurt"]
[8818,88527,"Milde","Roland","Herren","FSV Frankfurt","FSV Frankfurt"]
[8822,51178,"Ming","Benjamin","Herren","FSV Frankfurt","FSV Frankfurt"]
[15589,524,"Ming","Frederick","Herren","FSV Frankfurt","FSV Frankfurt"]
[8877,39204,"Neldner","Dominic","Herren","FSV Frankfurt","FSV Frankfurt"]
[8878,88632,"Neldner","Udo","Sen B","FSV Frankfurt","FSV Frankfurt"]
[8879,null,"Neldner","Ute","Sen A","FSV Frankfurt","FSV Frankfurt"]
[8924,88633,"Paparaphiou","Jessica","Damen","FSV Frankfurt","FSV Frankfurt"]
[15127,39914,"Schneider","Christine","Damen","FSV Frankfurt","FSV Frankfurt"]
[15788,39884,"Schneider","Marcel","Herren","FSV Frankfurt","FSV Frankfurt"]
[15806,51208,"Schüler","Christian","Herren","FSV Frankfurt","FSV Frankfurt"]
[15208,51637,"Spendler","Peggy","Damen","FSV Frankfurt","FSV Frankfurt"]
[15246,67525,"Stolte","Manuela","Damen","FSV Frankfurt","FSV Frankfurt"]
[15277,89266,"Thomas","Benjamin","Herren","FSV Frankfurt","FSV Frankfurt"]
[15278,88635,"Thomas","Hans-Jürgen","Sen B","FSV Frankfurt","FSV Frankfurt"]
[15292,27349,"Tragbar","Thomas","Sen B","FSV Frankfurt","FSV Frankfurt"]
[15377,88636,"Wiesner","Gerald","Sen A","FSV Frankfurt","FSV Frankfurt"]
[15947,99874,"Adjei","Danilo","Jun","FTG-BC Frankfurt","FTG 1847 Frankfurt"]
[33011,106816,"Adler","Tamara","Jug A","FTG-BC Frankfurt","FTG 1847 Frankfurt"]
[8018,88780,"Ammer","Frank","Sen C","FTG-BC Frankfurt","FTG 1847 Frankfurt"]
[8045,530,"Barth","Jeannine","Jun","FTG-BC Frankfurt","FTG 1847 Frankfurt"]
[15742,100569,"Barth","Birgit","Sen A","FTG-BC Frankfurt","FTG 1847 Frankfurt"]
[15823,51453,"Bott","Inge","Sen B","FTG-BC Frankfurt","FTG 1847 Frankfurt"]
[33040,106943,"Budimir","Joseph","Jug A","FTG-BC Frankfurt","FTG 1847 Frankfurt"]
[15897,66800,"Coleman","Jason","Jug A","FTG-BC Frankfurt","FTG 1847 Frankfurt"]
[31252,null,"Degenhardt","Lea","Jug A","FTG-BC Frankfurt","FTG 1847 Frankfurt"]
[8227,null,"Deters","Susanne","Jun","FTG-BC Frankfurt","FTG 1847 Frankfurt"]
[15773,null,"Diekert","Johannes","Sen A","FTG-BC Frankfurt","FTG 1847 Frankfurt"]
[8259,null,"Dorfmeister","Gabriele","Sen A","FTG-BC Frankfurt","FTG 1847 Frankfurt"]
[8278,910,"Eylardi","Achim","Herren","FTG-BC Frankfurt","FTG 1847 Frankfurt"]
[8279,88781,"Eylardi","Michaela","Sen A","FTG-BC Frankfurt","FTG 1847 Frankfurt"]
[15962,100568,"Fastus","Lars","Jug B","FTG-BC Frankfurt","FTG 1847 Frankfurt"]
[15790,null,"Franz","Sabine","Damen","FTG-BC Frankfurt","FTG 1847 Frankfurt"]
[8369,null,"Gracia-Esteban","Lydia","Damen","FTG-BC Frankfurt","FTG 1847 Frankfurt"]
[8420,674,"Grein","Michael","Sen A","FTG-BC Frankfurt","FTG 1847 Frankfurt"]
[8630,null,"Heidt","Angelika","Damen","FTG-BC Frankfurt","FTG 1847 Frankfurt"]
[8494,51454,"Helfrich","Regina","Damen","FTG-BC Frankfurt","FTG 1847 Frankfurt"]
[33075,107024,"Helfrich","Rainer","Sen A","FTG-BC Frankfurt","FTG 1847 Frankfurt"]
[26519,104775,"Hesbacher","Laura","Jug A","FTG-BC Frankfurt","FTG 1847 Frankfurt"]
[8557,66978,"Höhler","Sieglinde","Sen A","FTG-BC Frankfurt","FTG 1847 Frankfurt"]
[26185,40386,"Kirsch","Tina","Damen","FTG-BC Frankfurt","FTG 1847 Frankfurt"]
[26101,26112,"Lazar","Shirley","Damen","FTG-BC Frankfurt","FTG 1847 Frankfurt"]
[15628,null,"Leuthner","Lena","Jug A","FTG-BC Frankfurt","FTG 1847 Frankfurt"]
[33019,106848,"Löw","Maximilian","Jun","FTG-BC Frankfurt","FTG 1847 Frankfurt"]
[8804,67445,"Meurer","Marius","Jug A","FTG-BC Frankfurt","FTG 1847 Frankfurt"]
[8805,40096,"Meurer","Sylvia","Sen A","FTG-BC Frankfurt","FTG 1847 Frankfurt"]
[15791,null,"Meyer","Herbert Andreas","Herren","FTG-BC Frankfurt","FTG 1847 Frankfurt"]
[15824,51617,"Pietzsch","Frank","Herren","FTG-BC Frankfurt","FTG 1847 Frankfurt"]
[15631,750,"Reich","Kirsten","Damen","FTG-BC Frankfurt","FTG 1847 Frankfurt"]
[15544,225,"Rifinius","Nadja","Damen","FTG-BC Frankfurt","FTG 1847 Frankfurt"]
[15545,null,"Rifinius","Katha","Damen","FTG-BC Frankfurt","FTG 1847 Frankfurt"]
[15251,27325,"Schrank","Nicole","Damen","FTG-BC Frankfurt","FTG 1847 Frankfurt"]
[15153,null,"Schudt","Gerhard","Sen A","FTG-BC Frankfurt","FTG 1847 Frankfurt"]
[15156,null,"Schülke","Peter","Herren","FTG-BC Frankfurt","FTG 1847 Frankfurt"]
[26115,40302,"Schütz","Martina","Damen","FTG-BC Frankfurt","FTG 1847 Frankfurt"]
[15200,null,"Slawik","Miriam","Jun","FTG-BC Frankfurt","FTG 1847 Frankfurt"]
[15780,null,"Speck","Helene","Damen","FTG-BC Frankfurt","FTG 1847 Frankfurt"]
[15272,106624,"Then","Manuela","Damen","FTG-BC Frankfurt","FTG 1847 Frankfurt"]
[26454,66303,"Zunker","Samantha","Jun","FTG-BC Frankfurt","FTG 1847 Frankfurt"]
[10065,107111,"Aljakrinskij","Alexander","Sen A","BC 83 Kelsterbach","KBV Kelsterbach"]
[10066,107128,"Aljakrinskij","Natalia","Damen","BC 83 Kelsterbach","KBV Kelsterbach"]
[8153,27842,"Brookes-Kiefer","Elaine","Sen B","BC 83 Kelsterbach","KBV Kelsterbach"]
[8176,106539,"Cabrera Tudela","Antonio","Sen C","BC 83 Kelsterbach","KBV Kelsterbach"]
[8190,549,"Chalkidis","Anastasios","Sen A","BC 83 Kelsterbach","KBV Kelsterbach"]
[15784,39634,"Cussler","Karl","Sen C","BC 83 Kelsterbach","KBV Kelsterbach"]
[33067,106996,"Derleth","Michael","Herren","BC 83 Kelsterbach","KBV Kelsterbach"]
[8225,27698,"Desiderio","Giovanni","Sen A","BC 83 Kelsterbach","KBV Kelsterbach"]
[15941,89225,"Dietrich","Andreas","Herren","BC 83 Kelsterbach","KBV Kelsterbach"]
[15709,27701,"Drabe","Sven","Herren","BC 83 Kelsterbach","KBV Kelsterbach"]
[8276,106540,"Engisch","Erhard","Sen C","BC 83 Kelsterbach","KBV Kelsterbach"]
[15504,27845,"Förster","Dirk","Herren","BC 83 Kelsterbach","KBV Kelsterbach"]
[8343,106580,"Franzmann","Bert","Sen A","BC 83 Kelsterbach","KBV Kelsterbach"]
[8357,null,"Frye","Karl-Heinz","Sen C","BC 83 Kelsterbach","KBV Kelsterbach"]
[15908,67264,"Gromek","Claudia","Damen","BC 83 Kelsterbach","KBV Kelsterbach"]
[15486,106541,"Gulla","Edelgard Monika","Sen C","BC 83 Kelsterbach","KBV Kelsterbach"]
[8437,375,"Gunkel","Sören","Jug A","BC 83 Kelsterbach","KBV Kelsterbach"]
[8459,51489,"Hardt","Werner","Sen C","BC 83 Kelsterbach","KBV Kelsterbach"]
[15531,null,"Hartmann","Philipp","Jug A","BC 83 Kelsterbach","KBV Kelsterbach"]
[15521,null,"Hastedt","Ulla","Damen","BC 83 Kelsterbach","KBV Kelsterbach"]
[8490,106542,"Held","Ernst","Sen C","BC 83 Kelsterbach","KBV Kelsterbach"]
[8492,106543,"Held","Waltraud","Sen C","BC 83 Kelsterbach","KBV Kelsterbach"]
[8516,null,"Hentschel","Ilona","Sen A","BC 83 Kelsterbach","KBV Kelsterbach"]
[15914,67369,"Herzberger","Jennifer","Damen","BC 83 Kelsterbach","KBV Kelsterbach"]
[8535,106554,"Hicke","Sebastian","Jun","BC 83 Kelsterbach","KBV Kelsterbach"]
[8539,106544,"Hilger","Detlef","Sen A","BC 83 Kelsterbach","KBV Kelsterbach"]
[8595,106553,"Jankowski","Detlev","Sen A","BC 83 Kelsterbach","KBV Kelsterbach"]
[33032,106926,"Jourdan","Frank","Herren","BC 83 Kelsterbach","KBV Kelsterbach"]
[15562,null,"Kasinski","Joel","Jug A","BC 83 Kelsterbach","KBV Kelsterbach"]
[8639,27694,"Kiefer","Michael","Sen B","BC 83 Kelsterbach","KBV Kelsterbach"]
[10069,27702,"Knobloch","Joerg","Herren","BC 83 Kelsterbach","KBV Kelsterbach"]
[28108,132425,"Kolander","Torsten","Herren","BC 83 Kelsterbach","KBV Kelsterbach"]
[15879,52072,"Krock","Christian","Herren","BC 83 Kelsterbach","KBV Kelsterbach"]
[33048,106968,"Lella","Michele Antonio","Herren","BC 83 Kelsterbach","KBV Kelsterbach"]
[8755,106545,"Lopez Rodrigues","Raul","Sen B","BC 83 Kelsterbach","KBV Kelsterbach"]
[15782,39635,"Machura","Sandra","Damen","BC 83 Kelsterbach","KBV Kelsterbach"]
[15783,39637,"Machura","Damian","Herren","BC 83 Kelsterbach","KBV Kelsterbach"]
[8777,1012,"Mank","Mike","Jun","BC 83 Kelsterbach","KBV Kelsterbach"]
[8778,88694,"Mank","Siegfried","Sen B","BC 83 Kelsterbach","KBV Kelsterbach"]
[8793,null,"Mazzon","Stefan","Herren","BC 83 Kelsterbach","KBV Kelsterbach"]
[8830,269,"Mögle","Horst","Sen C","BC 83 Kelsterbach","KBV Kelsterbach"]
[33090,107090,"Nessel","Gerald","Sen B","BC 83 Kelsterbach","KBV Kelsterbach"]
[15929,67508,"Rejzek","Alexander","Jug A","BC 83 Kelsterbach","KBV Kelsterbach"]
[15037,106546,"Rossel","Reiner","Sen C","BC 83 Kelsterbach","KBV Kelsterbach"]
[15512,106548,"Rust","Steven","Herren","BC 83 Kelsterbach","KBV Kelsterbach"]
[15567,106547,"Rust","Martina","Sen A","BC 83 Kelsterbach","KBV Kelsterbach"]
[15075,106549,"Schenk","Peter","Herren","BC 83 Kelsterbach","KBV Kelsterbach"]
[15120,106550,"Schmitt","Hans-Werner","Sen B","BC 83 Kelsterbach","KBV Kelsterbach"]
[20654,39351,"Schmitz","Christoff","Herren","BC 83 Kelsterbach","KBV Kelsterbach"]
[15128,null,"Schneider","Friedrich","Sen C","BC 83 Kelsterbach","KBV Kelsterbach"]
[15129,null,"Schneider","Gisela","Sen C","BC 83 Kelsterbach","KBV Kelsterbach"]
[15130,null,"Schneider","Günter","Sen C","BC 83 Kelsterbach","KBV Kelsterbach"]
[12620,60550,"Schutte","Saskia","Jun","BC 83 Kelsterbach","KBV Kelsterbach"]
[15213,106551,"Spot","Heinz","Sen B","BC 83 Kelsterbach","KBV Kelsterbach"]
[33110,132424,"Suchy","Nikolai","Herren","BC 83 Kelsterbach","KBV Kelsterbach"]
[15549,198,"Thode","Karl-Heinz","Sen C","BC 83 Kelsterbach","KBV Kelsterbach"]
[15307,null,"Ullrich-Weiss","Renate","Sen B","BC 83 Kelsterbach","KBV Kelsterbach"]
[33096,107137,"Winkelmann","Marco","Herren","BC 83 Kelsterbach","KBV Kelsterbach"]
[15563,286,"Zitzmann","Jan Eric","Jun","BC 83 Kelsterbach","KBV Kelsterbach"]
[15717,27841,"Bauer","Hans Jürgen","Sen C","KBC Kelsterbach","KBV Kelsterbach"]
[12869,45453,"Baumann","Norbert","Sen C","KBC Kelsterbach","KBV Kelsterbach"]
[12996,33415,"Baumann","Gabriele","Sen A","KBC Kelsterbach","KBV Kelsterbach"]
[8138,40042,"Brandes","Gabriele","Sen A","KBC Kelsterbach","KBV Kelsterbach"]
[8139,39379,"Brandes","Matthias","Sen A","KBC Kelsterbach","KBV Kelsterbach"]
[8221,66852,"Dennechaud","Renate","Sen B","KBC Kelsterbach","KBV Kelsterbach"]
[15737,244,"Deppisch","Andrea","Jun","KBC Kelsterbach","KBV Kelsterbach"]
[15670,27392,"Dobrindt","Oliver","Sen A","KBC Kelsterbach","KBV Kelsterbach"]
[15671,27393,"Dobrindt","Michaela","Damen","KBC Kelsterbach","KBV Kelsterbach"]
[8264,66849,"Duplois","Petra","Sen B","KBC Kelsterbach","KBV Kelsterbach"]
[15719,null,"Ehrmann","Monika","Sen A","KBC Kelsterbach","KBV Kelsterbach"]
[15930,67509,"Flores","Christina","Jug A","KBC Kelsterbach","KBV Kelsterbach"]
[8346,null,"Fricke","Andreas","Herren","KBC Kelsterbach","KBV Kelsterbach"]
[15875,null,"Habermann","Cornelia","Damen","KBC Kelsterbach","KBV Kelsterbach"]
[8445,null,"Hafemann","Gerhard","Sen A","KBC Kelsterbach","KBV Kelsterbach"]
[8581,null,"Ilzhöfer","Ilka","Damen","KBC Kelsterbach","KBV Kelsterbach"]
[33081,107059,"Jantke","Dunja","Damen","KBC Kelsterbach","KBV Kelsterbach"]
[15997,106764,"Knoblauch","Tobias","Herren","KBC Kelsterbach","KBV Kelsterbach"]
[8734,66980,"Laun","Stephanie","Damen","KBC Kelsterbach","KBV Kelsterbach"]
[8735,109,"Laun","Werner","Sen B","KBC Kelsterbach","KBV Kelsterbach"]
[33018,106839,"Leutwiler","Sabine","Sen B","KBC Kelsterbach","KBV Kelsterbach"]
[14750,null,"Möbius","Peter","Sen A","KBC Kelsterbach","KBV Kelsterbach"]
[8895,66854,"Nolte","Joachim","Sen A","KBC Kelsterbach","KBV Kelsterbach"]
[8931,27452,"Pelz","Marianne","Sen B","KBC Kelsterbach","KBV Kelsterbach"]
[8952,null,"Plesch","Uschi","Damen","KBC Kelsterbach","KBV Kelsterbach"]
[15464,89102,"Reul","Olaf","Herren","KBC Kelsterbach","KBV Kelsterbach"]
[15043,66851,"Rühl","Marion","Sen B","KBC Kelsterbach","KBV Kelsterbach"]
[15051,39259,"Sabo","Christine","Sen A","KBC Kelsterbach","KBV Kelsterbach"]
[15057,27838,"Sanchez","Diana","Damen","KBC Kelsterbach","KBV Kelsterbach"]
[15923,null,"Schäfer","Sandro","Herren","KBC Kelsterbach","KBV Kelsterbach"]
[15716,null,"Schmied","Monika","Damen","KBC Kelsterbach","KBV Kelsterbach"]
[15724,null,"Schmied","Kevin","Jun","KBC Kelsterbach","KBV Kelsterbach"]
[15978,106591,"Schneider","Scarlett-Alice","Jug A","KBC Kelsterbach","KBV Kelsterbach"]
[15472,66857,"Schönhoff","Andreas","Herren","KBC Kelsterbach","KBV Kelsterbach"]
[15735,39353,"Schulz","Lutz","Sen A","KBC Kelsterbach","KBV Kelsterbach"]
[15979,106590,"Steinbrückner","Enola-Maria","Jug A","KBC Kelsterbach","KBV Kelsterbach"]
[15802,null,"Tauchmann","Christian","Herren","KBC Kelsterbach","KBV Kelsterbach"]
[15556,237,"Theobald","Anja","Damen","KBC Kelsterbach","KBV Kelsterbach"]
[15928,67507,"Veenstra","Joshua","Jug A","KBC Kelsterbach","KBV Kelsterbach"]
[15718,27843,"Wollschläger","Thomas","Sen A","KBC Kelsterbach","KBV Kelsterbach"]
[8033,27846,"Aust","Michael","Sen A","AAN Schwanheim","KBVS Schwanheim"]
[15890,67177,"Bertsch","Hans-Joachim","Sen B","AAN Schwanheim","KBVS Schwanheim"]
[8158,null,"Brunner","Waldemar","Sen A","AAN Schwanheim","KBVS Schwanheim"]
[8187,106271,"Carter","Anthony","Sen A","AAN Schwanheim","KBVS Schwanheim"]
[8205,106272,"Custodio-Simon","Elena","Sen C","AAN Schwanheim","KBVS Schwanheim"]
[8230,106273,"Di Gregorio","Gaetano","Sen C","AAN Schwanheim","KBVS Schwanheim"]
[33106,132417,"Geck","Maurice","Jun","AAN Schwanheim","KBVS Schwanheim"]
[8374,106274,"Geck","Rainer","Herren","AAN Schwanheim","KBVS Schwanheim"]
[8689,997,"Geck","Petra","Sen A","AAN Schwanheim","KBVS Schwanheim"]
[8421,null,"Greulich","Karl-Peter","Sen A","AAN Schwanheim","KBVS Schwanheim"]
[8446,106275,"Haft","Ursula","Sen A","AAN Schwanheim","KBVS Schwanheim"]
[8465,null,"Harth","Wilfried","Sen A","AAN Schwanheim","KBVS Schwanheim"]
[8477,106276,"Heger","Siegfried","Sen A","AAN Schwanheim","KBVS Schwanheim"]
[15687,null,"Hruschka","Stephan","Herren","AAN Schwanheim","KBVS Schwanheim"]
[15534,null,"Masak","Christiane","Sen A","AAN Schwanheim","KBVS Schwanheim"]
[15658,null,"Masak","Dieter","Sen A","AAN Schwanheim","KBVS Schwanheim"]
[8819,null,"Miller","Frank-Robert","Sen A","AAN Schwanheim","KBVS Schwanheim"]
[8820,51228,"Miller","Iris","Damen","AAN Schwanheim","KBVS Schwanheim"]
[8975,null,"Rademacher","Klaus","Sen A","AAN Schwanheim","KBVS Schwanheim"]
[15148,27847,"Schröder","Martina","Damen","AAN Schwanheim","KBVS Schwanheim"]
[15999,52014,"Siess","Ursula","Sen B","AAN Schwanheim","KBVS Schwanheim"]
[15214,106277,"Spot","Martin","Sen A","AAN Schwanheim","KBVS Schwanheim"]
[15289,106278,"Toegel-Bertsch","Sieglinde","Sen B","AAN Schwanheim","KBVS Schwanheim"]
[15298,51396,"Treutel","Stefan","Herren","AAN Schwanheim","KBVS Schwanheim"]
[15580,179,"Wahl","Marleen","Damen","AAN Schwanheim","KBVS Schwanheim"]
[15382,106279,"Winkler","Werner","Sen A","AAN Schwanheim","KBVS Schwanheim"]
[15400,null,"Wühr","Lothar-Josef","Sen C","AAN Schwanheim","KBVS Schwanheim"]
[8013,67165,"Albert","Stefan","Sen A","Mainhattan Bowlers Frankfurt","Mainhattan Bowlers Frankfurt"]
[8037,39866,"Baier","Michael","Sen A","Mainhattan Bowlers Frankfurt","Mainhattan Bowlers Frankfurt"]
[8044,88627,"Barth","Dietmar","Sen B","Mainhattan Bowlers Frankfurt","Mainhattan Bowlers Frankfurt"]
[23125,100322,"Berk","Johannes","Sen B","Mainhattan Bowlers Frankfurt","Mainhattan Bowlers Frankfurt"]
[26070,40388,"Bernau","Axel","Sen C","Mainhattan Bowlers Frankfurt","Mainhattan Bowlers Frankfurt"]
[10166,66258,"Berndt","Ernst","Sen C","Mainhattan Bowlers Frankfurt","Mainhattan Bowlers Frankfurt"]
[8129,100723,"Bonnert","Jürgen","Herren","Mainhattan Bowlers Frankfurt","Mainhattan Bowlers Frankfurt"]
[8131,100123,"Born","Wilhelm","Jun","Mainhattan Bowlers Frankfurt","Mainhattan Bowlers Frankfurt"]
[15502,100122,"Born","Achim","Sen A","Mainhattan Bowlers Frankfurt","Mainhattan Bowlers Frankfurt"]
[10193,67403,"Caldwell","James","Herren","Mainhattan Bowlers Frankfurt","Mainhattan Bowlers Frankfurt"]
[8249,100124,"Dillenseger","Pascal","Herren","Mainhattan Bowlers Frankfurt","Mainhattan Bowlers Frankfurt"]
[8254,100125,"Doll-Dillenseger","Kerstin","Sen B","Mainhattan Bowlers Frankfurt","Mainhattan Bowlers Frankfurt"]
[33030,106917,"Drefs","Steffen","Herren","Mainhattan Bowlers Frankfurt","Mainhattan Bowlers Frankfurt"]
[15935,67549,"Fleischhacker","Michael","Herren","Mainhattan Bowlers Frankfurt","Mainhattan Bowlers Frankfurt"]
[8338,51927,"Förster","Petra","Sen A","Mainhattan Bowlers Frankfurt","Mainhattan Bowlers Frankfurt"]
[15827,51483,"Gertenbach","Sabine","Sen C","Mainhattan Bowlers Frankfurt","Mainhattan Bowlers Frankfurt"]
[8417,88557,"Grechenig","Ferdinand","Sen B","Mainhattan Bowlers Frankfurt","Mainhattan Bowlers Frankfurt"]
[15647,27172,"Greenaway","Jesse","Sen A","Mainhattan Bowlers Frankfurt","Mainhattan Bowlers Frankfurt"]
[15958,100558,"Grieb","Waldemar","Sen B","Mainhattan Bowlers Frankfurt","Mainhattan Bowlers Frankfurt"]
[26087,null,"Groß","Manuel","Herren","Mainhattan Bowlers Frankfurt","Mainhattan Bowlers Frankfurt"]
[8428,null,"Grossmuth","Erol","Jun","Mainhattan Bowlers Frankfurt","Mainhattan Bowlers Frankfurt"]
[8441,89407,"Hack","Dietmar","Sen C","Mainhattan Bowlers Frankfurt","Mainhattan Bowlers Frankfurt"]
[15981,106642,"Hauck","Mark","Herren","Mainhattan Bowlers Frankfurt","Mainhattan Bowlers Frankfurt"]
[26181,40286,"Hirth","Steffen","Jun","Mainhattan Bowlers Frankfurt","Mainhattan Bowlers Frankfurt"]
[8546,100129,"Hlavinka","Pascal","Herren","Mainhattan Bowlers Frankfurt","Mainhattan Bowlers Frankfurt"]
[33014,106831,"Hunkel","Beate","Damen","Mainhattan Bowlers Frankfurt","Mainhattan Bowlers Frankfurt"]
[33086,107081,"Hunkel","Viktoria","Jug B","Mainhattan Bowlers Frankfurt","Mainhattan Bowlers Frankfurt"]
[33015,106832,"Jantschik","Leonhard","Sen B","Mainhattan Bowlers Frankfurt","Mainhattan Bowlers Frankfurt"]
[8612,100130,"Jünemann","Klaus","Sen A","Mainhattan Bowlers Frankfurt","Mainhattan Bowlers Frankfurt"]
[8618,88701,"Kaiser","Michael","Sen A","Mainhattan Bowlers Frankfurt","Mainhattan Bowlers Frankfurt"]
[33070,106998,"Kaiser","Dominik","Herren","Mainhattan Bowlers Frankfurt","Mainhattan Bowlers Frankfurt"]
[26296,null,"Korol","Stefan","Sen A","Mainhattan Bowlers Frankfurt","Mainhattan Bowlers Frankfurt"]
[8728,51486,"Lassiter","Wayne","Sen A","Mainhattan Bowlers Frankfurt","Mainhattan Bowlers Frankfurt"]
[26098,null,"Laukaitis","Patrick","Herren","Mainhattan Bowlers Frankfurt","Mainhattan Bowlers Frankfurt"]
[8799,null,"Melson","Klaus","Sen C","Mainhattan Bowlers Frankfurt","Mainhattan Bowlers Frankfurt"]
[8814,null,"Micianova","Jana","Damen","Mainhattan Bowlers Frankfurt","Mainhattan Bowlers Frankfurt"]
[15970,100682,"Nattermann","Hubert","Sen C","Mainhattan Bowlers Frankfurt","Mainhattan Bowlers Frankfurt"]
[33069,106997,"Passrugger","Karin","Sen A","Mainhattan Bowlers Frankfurt","Mainhattan Bowlers Frankfurt"]
[26108,40277,"Rathgeber","Klaus","Sen A","Mainhattan Bowlers Frankfurt","Mainhattan Bowlers Frankfurt"]
[15012,67610,"Reuter","Agnes","Sen A","Mainhattan Bowlers Frankfurt","Mainhattan Bowlers Frankfurt"]
[15013,67611,"Reuter","Winfried","Sen B","Mainhattan Bowlers Frankfurt","Mainhattan Bowlers Frankfurt"]
[15026,null,"Roeder","Christoph","Herren","Mainhattan Bowlers Frankfurt","Mainhattan Bowlers Frankfurt"]
[15065,51533,"Schäfer","Jürgen","Herren","Mainhattan Bowlers Frankfurt","Mainhattan Bowlers Frankfurt"]
[15648,null,"Schlamp","Matthias","Jun","Mainhattan Bowlers Frankfurt","Mainhattan Bowlers Frankfurt"]
[15440,100132,"Schlösser","Patrick","Jun","Mainhattan Bowlers Frankfurt","Mainhattan Bowlers Frankfurt"]
[15162,100133,"Schulz","Petra","Sen A","Mainhattan Bowlers Frankfurt","Mainhattan Bowlers Frankfurt"]
[15943,89301,"Tambosi","Michael","Sen B","Mainhattan Bowlers Frankfurt","Mainhattan Bowlers Frankfurt"]
[15454,27369,"Tanhaei-Bazkiaei","Djamshid","Sen A","Mainhattan Bowlers Frankfurt","Mainhattan Bowlers Frankfurt"]
[15310,88559,"Unger","Bernd","Sen C","Mainhattan Bowlers Frankfurt","Mainhattan Bowlers Frankfurt"]
[15350,88626,"Weidling","Wolfgang","Sen C","Mainhattan Bowlers Frankfurt","Mainhattan Bowlers Frankfurt"]
[15359,67477,"Weissbeck","Bernd","Sen C","Mainhattan Bowlers Frankfurt","Mainhattan Bowlers Frankfurt"]
[15956,null,"Wendt","Sylvia","Sen A","Mainhattan Bowlers Frankfurt","Mainhattan Bowlers Frankfurt"]
[15980,106623,"Aulbach","Klaus","Jug A","SW Friedberg","Schwarz Weiss Friedberg"]
[15995,106746,"Berg","Tobias","Jug A","SW Friedberg","Schwarz Weiss Friedberg"]
[8127,67442,"Bolzmann","Dagmar","Sen C","SW Friedberg","Schwarz Weiss Friedberg"]
[33031,106925,"Bugs","Sven","Herren","SW Friedberg","Schwarz Weiss Friedberg"]
[8173,67019,"Buskowiak","Thomas","Sen B","SW Friedberg","Schwarz Weiss Friedberg"]
[15945,89452,"Clouser","John","Herren","SW Friedberg","Schwarz Weiss Friedberg"]
[8319,623,"Fischer","Thomas","Sen A","SW Friedberg","Schwarz Weiss Friedberg"]
[15882,null,"Haberlick","Alexander","Jug A","SW Friedberg","Schwarz Weiss Friedberg"]
[8451,67441,"Hahn","Dietmar","Sen A","SW Friedberg","Schwarz Weiss Friedberg"]
[10208,67336,"Hahn","Sascha","Herren","SW Friedberg","Schwarz Weiss Friedberg"]
[15618,381,"Hahn","Angelika","Sen A","SW Friedberg","Schwarz Weiss Friedberg"]
[15881,52056,"Hassenpflug","Marcel","Herren","SW Friedberg","Schwarz Weiss Friedberg"]
[15885,66767,"Hochhaus","Jonny","Sen A","SW Friedberg","Schwarz Weiss Friedberg"]
[15891,67273,"Hochhaus","Jan","Herren","SW Friedberg","Schwarz Weiss Friedberg"]
[15937,67660,"Hochhaus","Barbara","Sen A","SW Friedberg","Schwarz Weiss Friedberg"]
[8561,null,"Hormann","Bettina","Jun","SW Friedberg","Schwarz Weiss Friedberg"]
[15619,379,"Jakobi","Manfred","Sen B","SW Friedberg","Schwarz Weiss Friedberg"]
[8611,67510,"Jox","Thomas","Sen A","SW Friedberg","Schwarz Weiss Friedberg"]
[8627,null,"Kasten","Hildegard","Sen A","SW Friedberg","Schwarz Weiss Friedberg"]
[8720,null,"Lang","Claudia","Damen","SW Friedberg","Schwarz Weiss Friedberg"]
[15940,89150,"Popp","Stefan","Herren","SW Friedberg","Schwarz Weiss Friedberg"]
[8970,39430,"Pürzl","Christel","Sen A","SW Friedberg","Schwarz Weiss Friedberg"]
[8971,null,"Pürzl","Rebecca","Damen","SW Friedberg","Schwarz Weiss Friedberg"]
[15938,88880,"Rödler","Max","Herren","SW Friedberg","Schwarz Weiss Friedberg"]
[15883,null,"Roth","Wolfgang","Sen A","SW Friedberg","Schwarz Weiss Friedberg"]
[33029,106915,"Rothenbacher","Ralph","Sen A","SW Friedberg","Schwarz Weiss Friedberg"]
[10111,52057,"Schlier","Elisabeth","Sen A","SW Friedberg","Schwarz Weiss Friedberg"]
[10110,67018,"Stock","Ulrich","Herren","SW Friedberg","Schwarz Weiss Friedberg"]
[15297,67511,"Trendel","Richard","Sen A","SW Friedberg","Schwarz Weiss Friedberg"]
[15996,106750,"Trendel","Marvin","Jun","SW Friedberg","Schwarz Weiss Friedberg"]
[15337,67512,"Walter","Gerhard","Sen A","SW Friedberg","Schwarz Weiss Friedberg"]
[15982,106644,"Wiegand","Hans","Sen A","SW Friedberg","Schwarz Weiss Friedberg"]
[15994,106747,"Wiegand","Nico","Jug A","SW Friedberg","Schwarz Weiss Friedberg"]
[8021,null,"Anna","Klaus","Sen B","BC 89 Olympia Rüsselsheim","TuS Rüsselsheim"]
[8022,null,"Anna","Ursula","Sen B","BC 89 Olympia Rüsselsheim","TuS Rüsselsheim"]
[8116,null,"Bloedow","Helene","Sen B","BC 89 Olympia Rüsselsheim","TuS Rüsselsheim"]
[8556,null,"Hofmann","Gerd","Herren","BC 89 Olympia Rüsselsheim","TuS Rüsselsheim"]
[8610,null,"Josupeit","Iris","Damen","BC 89 Olympia Rüsselsheim","TuS Rüsselsheim"]
[8648,null,"Kläser","Richard","Herren","BC 89 Olympia Rüsselsheim","TuS Rüsselsheim"]
[15493,null,"Pusch","Elli","Sen A","BC 89 Olympia Rüsselsheim","TuS Rüsselsheim"]
[8982,null,"Rau","Dieter","Sen B","BC 89 Olympia Rüsselsheim","TuS Rüsselsheim"]
[8983,null,"Rau","Waltraud","Sen B","BC 89 Olympia Rüsselsheim","TuS Rüsselsheim"]
[15018,null,"Ritter V.Uleniecki","Michael","Sen C","BC 89 Olympia Rüsselsheim","TuS Rüsselsheim"]
[15125,null,"Schmitzer","Joachim","Sen A","BC 89 Olympia Rüsselsheim","TuS Rüsselsheim"]
[15198,null,"Slawik","Cornelia","Sen A","BC 89 Olympia Rüsselsheim","TuS Rüsselsheim"]
[15252,null,"Strecker","Roland","Sen C","BC 89 Olympia Rüsselsheim","TuS Rüsselsheim"]
[15394,null,"Wölfel","Klaus","Sen B","BC 89 Olympia Rüsselsheim","TuS Rüsselsheim"]